Cogmind - Beta 17.1 @@@ ROGUE MODE // 2026.09.17 @ 23:05:01 Player: Alicianrone Result: Core melted Performance ------------- Evolutions (8) 4000 Regions Visited (33) 6600 Robots Destroyed (599) 2995 Value Destroyed (29266) 29266 Prototype IDs (178) 3560 Alien Tech Used (6) 1200 Bonus (32001) 32001 TOTAL SCORE: 79622 Bonus ------- Triggered High Security 1500 High Alert Combat Kills 16444 Follower Combat Kills 7076 Hunted by Unchained 500 Entered Garrisons 200 Network Hubs Disabled 400 Registered with UFD 300 Met Optimus in HQ 500 Met Warlord at Base 500 MAIN.C Attacked Warlord 500 Warlord Defense Kills 384 Met R17 at Cetus 500 Found Hidden Lab 3000 Hacked Protovariant 500 Met R17 at Research 2000 Scanned by Researcher 500 Friendly Fire -2803 Cogmind --------- Core Integrity 0/1450 Matter 295/300 Energy 171/200 System Corruption 16% Temperature Critical (779) Movement Core (1500) Ox29 Location -2/Testing Parts ------- > --- POWER (2) -------- Micro Antimatter Reactor Micro Antimatter Reactor > --- PROPULSION (8) --- Cooled Gravmag System Improved Antigrav System Antigrav Array Cooled Linear Gravjet Cooled Linear Gravjet Cooled Linear Gravjet Combat Linear Gravjet > --- UTILITY (10) ----- Advanced Heat Sink Advanced Heat Sink Concept Antigrav Storage Unit Advanced Signal Interpreter Experimental Target Analyzer Experimental Core Analyzer Concept Phase Shift Module Heavy Regenerative Plating Concept Beam Splitter (fused) > --- WEAPON (3) ------- Concept Plasma Driver > --- INVENTORY (25) --- Light Quantum Reactor Advanced Heavy Siege Treads High-density Centrium Leg Experimental Biomechanical Wings Concept Chromion Battery (800) Concept NT7 Matterbank (750) Advanced Sensor Array Advanced Particle Accelerator Experimental Kinecellerator Concept Reaction Jets Concept Reaction Jets Concept Phase Shift Module Concept Cloak Mesh Concept Cloak Mesh Concept Antimissile System Concept Matter Streamer Hypervelocity Multirail Concept XC Strikerail Concept XC Strikerail Concept XC Strikerail Concept XC Strikerail Concept Miniperforator Concept Miniperforator Ragnarok Missile Launcher Peak State ------------ > --- POWER ------------ Hybrid Graviton Reactor Concept Zero-point Core > --- PROPULSION ------- Experimental Biomechanical Wings Experimental Biomechanical Wings Experimental Biomechanical Wings Experimental Biomechanical Wings Experimental Surge Thruster Concept Fieldthrust Drive Concept Fieldthrust Drive > --- UTILITY ---------- Advanced Cryofiber Web Concept Phasing Heat Sink Concept Antigrav Storage Unit Concept Dimensional Manipulator Experimental Signal Interpreter Experimental Core Analyzer Concept Core Analysis Suite Concept RG22 Armor > --- WEAPON ----------- Concept Plasma Driver Concept Plasma Driver Concept Deflector Sword > --- INVENTORY -------- Micro Antimatter Reactor Concept Fieldthrust Drive Concept Chromion Battery Concept NT7 Matterbank Advanced Particle Accelerator Experimental Kinecellerator Femtoactuators Concept Reaction Jets Concept Reaction Jets Concept Phase Shift Module Concept Cloak Mesh Concept Cloak Mesh Concept Beam Splitter Concept Antimissile System Concept Matter Streamer Crosscalibrator Transdimensional Reconstructor Subatomic Replicator Concept XC Strikerail Concept XC Strikerail Concept XC Strikerail Concept XC Strikerail Concept Miniperforator Concept Miniperforator [Rating: 252] Favorites ----------- Power Cooled Ion Engine Engine Cooled Ion Engine Power Core Light Fission Core Reactor Quantum Reactor Propulsion Cooled VTOL Module Treads Improved Treads Leg Enhanced Biometal Leg Wheel Compact Wheel Hover Unit Cooled Aerolev Unit Flight Unit Cooled VTOL Module Utility Advanced Signal Interpreter Device Experimental Sensor Array Storage Medium Storage Unit Processor Advanced Signal Interpreter Hackware Hacking Suite Protection Light Armor Plating Weapon Overtuned Coil Gun Energy Gun EM Pulse Gun Energy Cannon Cooled Plasma Cannon Ballistic Gun Overtuned Coil Gun Ballistic Cannon Improved Light Cannon Launcher Rocket Launcher Special Weapon Improved Remote Datajack Slashing Weapon DM-GVY's Chainsaw Piercing Weapon Plasma Lance Special Melee Weapon Improved Datajack Build | -11 -10 -10 -9 -9 -9 -8 -8 -8 -8 -8 -6 -6 -6 -6 -6 -6 -6 -6 -5 -5 -5 -5 -5 -5 -4 -4 -4 -4 -3 -3 -3 -2 -2 ------- Run | Yrd Mat Min Mat Min Exi Min Mat Sto Rec Scr Fac Was Fac Ext Cet Arc Hub Gar Fac Was Fac Upp Upp War Pro Fac Arm Lab Res Qua Frg Res Tes Slots Evolved 16 | . . . 2 . . . 2 . . . 4 . . . . . . . 2 . . . . . . 2 . . 2 . . 2 . Power 1 | . . . . . . . . . . . . . . . . . . . . . . . . . . 1 . . . . . . . Propulsion 6 | . . . . . . . 1 . . . 2 . . . . . . . 2 . . . . . . . . . 1 . . . . Utility 8 | . . . 1 . . . 1 . . . 2 . . . . . . . . . . . . . . 1 . . 1 . . 2 . Weapon 1 | . . . 1 . . . . . . . . . . . . . . . . . . . . . . . . . . . . . . Parts Attached 381 | 7 5 7 26 4 . 2 6 29 10 15 22 2 13 4 4 2 9 4 17 1 19 4 . 6 . 10 13 6 23 3 50 20 38 Power 36 | 1 . 1 3 1 . . . 2 . 2 1 . 2 . . . 1 . 1 . 3 . . . . . 3 . 2 . 4 4 5 Engine 10 | 1 . 1 3 1 . . . 2 . . 1 . . . . . . . . . 1 . . . . . . . . . . . . Core 12 | . . . . . . . . . . 2 . . 2 . . . . . 1 . 1 . . . . . 2 . . . 2 2 . Reactor 14 | . . . . . . . . . . . . . . . . . 1 . . . 1 . . . . . 1 . 2 . 2 2 5 Propulsion 90 | 2 2 1 6 . . . 3 6 6 2 9 . 1 . . . 4 2 7 . 1 . . 3 . 3 1 1 6 . 8 3 13 Treads 16 | . 2 1 3 . . . 2 3 3 1 . . . . . . . . . . . . . . . . . . . . . . 1 Leg 9 | . . . . . . . . . . . . . . . . . 4 2 1 . . . . . . . . . 1 . . . 1 Wheel 10 | 2 . . 2 . . . 1 1 3 1 . . . . . . . . . . . . . . . . . . . . . . . Hover 21 | . . . . . . . . 1 . . 8 . 1 . . . . . . . . . . . . . . . . . . 1 10 Flight 34 | . . . 1 . . . . 1 . . 1 . . . . . . . 6 . 1 . . 3 . 3 1 1 5 . 8 2 1 Utility 160 | 2 2 2 6 1 . 2 1 12 . 6 7 2 8 2 2 2 4 2 6 1 13 3 . 2 . 4 7 2 9 . 25 10 15 Device 70 | 1 . 1 1 1 . . . . . 4 3 1 1 . . 1 2 . 2 1 8 3 . . . 3 5 . 4 . 13 6 9 Storage 9 | 1 2 . . . . 1 . . . . 1 . . . . . . 1 1 . . . . . . . . . 1 . 1 . . Processor 19 | . . . . . . . . 1 . 1 2 . 1 . . . 1 . . . 1 . . 2 . . . . 2 . 3 1 4 Hackware 17 | . . . 1 . . . . 1 . . . . 3 1 . 1 1 . 3 . 3 . . . . 1 1 1 . . . . . Protection 45 | . . 1 4 . . 1 1 10 . 1 1 1 3 1 2 . . 1 . . 1 . . . . . 1 1 2 . 8 3 2 Artifact . | . . . . . . . . . . . . . . . . . . . . . . . . . . . . . . . . . . Weapon 95 | 2 1 3 11 2 . . 2 9 4 5 5 . 2 2 2 . . . 3 . 2 1 . 1 . 3 2 3 6 3 13 3 5 Energy Gun 15 | 1 . . 2 1 . . 1 2 . . 1 . . 1 . . . . . . . . . . . . . 2 . . 4 . . Energy Cannon 13 | . . . 1 . . . . . . . 1 . 1 . . . . . . . . . . . . . . . 2 . 5 1 2 Ballistic Gun 35 | 1 . 1 5 1 . . . 6 2 2 1 . . 1 2 . . . 1 . 1 1 . . . 3 2 1 2 . 1 . 1 Ballistic Cannon 9 | . 1 1 3 . . . 1 . . . . . . . . . . . 1 . 1 . . . . . . . . . . . 1 Launcher 5 | . . 1 . . . . . . . . 1 . . . . . . . . . . . . . . . . . 1 . . 2 . Special Weapon 7 | . . . . . . . . . . 2 1 . . . . . . . 1 . . . . 1 . . . . 1 1 . . . Impact Weapon . | . . . . . . . . . . . . . . . . . . . . . . . . . . . . . . . . . . Slashing Weapon 7 | . . . . . . . . . 1 1 . . 1 . . . . . . . . . . . . . . . . 2 2 . . Piercing Weapon 2 | . . . . . . . . . . . . . . . . . . . . . . . . . . . . . . . 1 . 1 Special Melee Weapon 2 | . . . . . . . . 1 1 . . . . . . . . . . . . . . . . . . . . . . . . Unidentified Prototypes 67 | . . . 5 1 . . 1 6 . . 5 . 1 1 2 . 4 . . . 4 1 . 1 . 3 1 6 6 3 5 1 10 Corrupted Parts 4 | . . . . . . . . . . . . . 2 . . . . . 1 . . . . 1 . . . . . . . . . System Corruption 19 | . . . . . . . . . . . . . 4 . . . . . 4 . . . . 11 . . . . . . . . . Parts Lost 68 | . . 1 2 . . 1 2 4 1 . 1 . . . . 1 1 . . . 1 . 1 1 . 2 3 . . 1 17 23 5 Power 11 | . . . 1 . . . . . . . . . . . . . . . . . . . . . . 1 . . . . 2 6 1 Propulsion 16 | . . . . . . . 2 1 1 . . . . . . . 1 . . . . . 1 1 . . 2 . . . 1 4 2 Utility 32 | . . 1 1 . . 1 . 2 . . 1 . . . . 1 . . . . 1 . . . . 1 1 . . 1 9 11 1 Weapon 9 | . . . . . . . . 1 . . . . . . . . . . . . . . . . . . . . . . 5 2 1 Highest Loss Streak 10 | . . 1 2 . . 1 1 2 1 . 1 . . . . 1 1 . . . 1 . 1 1 . 1 1 . . 1 5 10 2 To Critical Strikes 1 | . . . . . . . . . . . . . . . . . . . . . . . . . . . . . . . 1 . . Average Backups 14 | 2 9 14 14 15 15 15 13 18 19 18 13 14 13 13 13 14 13 13 17 8 8 9 9 8 9 8 9 7 9 9 12 24 23 Power . | . 1 1 . 1 1 1 1 . 1 . . . . . . . . . . . . 1 1 . 1 . . . 1 1 . . . Propulsion 2 | 1 4 6 4 2 2 2 . 3 5 4 1 2 2 4 4 4 4 4 6 . . . . . 1 1 1 . . . 1 1 2 Utility 6 | . . 2 6 6 6 6 5 6 7 9 8 8 7 6 5 6 5 5 5 5 4 5 5 5 5 5 3 3 2 3 4 13 12 Weapon 4 | . 2 3 3 6 6 6 6 7 5 4 4 4 3 3 4 4 4 4 3 2 2 2 2 2 2 2 3 1 4 3 2 7 8 Tool/Special . | . . . . . . . . . . . . . . . . . . . . . . . . . . . . . . . . . . Unused Backups 72 | . . 3 9 . . . . 5 . 10 2 1 1 3 . . . . 3 2 3 . . 1 . 1 2 . 4 2 5 2 13 Power 6 | . . . 1 . . . . . . 2 . . . . . . . . 1 . . . . . . . . . 1 . . 1 . Propulsion 20 | . . 1 6 . . . . 2 . 1 1 . . . . . . . 1 1 2 . . . . 1 1 . . 1 . 1 1 Utility 23 | . . . . . . . . . . 5 . 1 1 3 . . . . 1 1 . . . 1 . . . . 1 1 2 . 6 Weapon 19 | . . 2 1 . . . . 3 . 1 1 . . . . . . . . . . . . . . . 1 . 1 . 3 . 6 Tool/Special 4 | . . . 1 . . . . . . 1 . . . . . . . . . . 1 . . . . . . . 1 . . . . Average Slot Usage (%) 90 | . 99 99 99 99 100 100 97 97 98 87 90 93 92 92 91 90 93 100 93 100 95 93 90 92 88 86 83 87 84 78 78 74 66 Engine 4 | . 14 14 10 11 11 11 9 9 9 7 5 6 . . . . . . . . . . . . . . . . . . . . . Core 2 | . . . . . . . . . . 1 . . 5 6 6 6 3 . . 5 4 5 5 5 5 8 3 10 6 4 4 1 . Reactor 1 | . . . . . . . . . . . . . . . . . 2 6 4 . . . . . . . 3 . 1 4 3 4 7 Treads 6 | . 16 14 11 11 11 11 23 17 18 11 . . . . . . . . . . . . . . . . . . . . . . 1 Leg 2 | . . . . . . . . . . . . . . . . . 8 32 33 . . . . . . . . . . . . . 1 Wheel 4 | . 12 14 10 11 11 11 2 8 8 15 . . . . . . . . . . . . . . . . . . . . . . . Hover 3 | . . . . . . . . . . . 25 26 25 25 26 26 17 . . . . . . . . . . . . . . . 8 Flight 11 | . . . . . . . . . . . . . . . . . . . 1 41 41 41 37 39 35 31 31 31 27 23 26 30 5 Device 7 | . 13 12 3 7 11 10 9 2 . 1 8 8 7 5 6 2 3 . 4 10 8 11 11 11 11 11 11 10 13 11 13 16 12 Storage 7 | . 14 14 11 11 11 11 9 9 9 9 6 6 6 6 6 6 6 6 5 5 5 5 5 5 5 5 5 5 4 4 4 4 4 Processor 7 | . . . . . . . . 5 . . 18 20 20 20 20 20 20 20 16 11 9 5 5 10 11 10 10 10 9 9 9 7 12 Hackware 2 | . . . 9 3 . . . 1 9 8 . . . . . 1 2 . . 5 1 . . . . . . . . . . . . Protection 7 | . . 1 9 11 11 11 16 16 18 9 3 3 4 5 5 6 6 12 5 . 3 4 4 . . 1 1 3 4 6 4 5 5 Ballistic Gun 10 | . 1 9 16 22 22 22 18 19 24 5 9 6 6 6 12 20 20 19 14 11 10 10 11 11 11 10 10 9 9 3 . . . Ballistic Cannon 3 | . 12 14 16 10 11 10 8 6 . . . . . . . . . . 1 . . . . . . . . . . . . . 2 Slashing Weapon 3 | . . . . . . . . . . 9 5 6 6 6 4 . . . . 5 5 5 5 4 5 5 5 5 3 4 3 1 . Special Melee Weapon 1 | . . . . . . . . . . 7 . . . . . . . . . . . . . . . . . . . . . . . Peak Build Rating 252 | 7 8 14 22 24 24 24 30 30 35 55 85 85 89 87 98 96 109 109 114 106 105 105 105 115 114 130 131 138 159 173 252 251 234 Average Rating 81 | 4 7 12 19 23 24 23 27 26 32 34 75 81 83 86 92 92 97 105 102 103 98 104 100 108 114 122 123 126 150 160 182 201 183 On Entrance 82 | . 7 8 14 21 24 24 24 26 30 31 53 85 79 87 81 96 92 109 103 104 103 105 105 98 114 114 124 128 133 159 171 230 119 Avg Prop Armor Cover (%) 8 | . 11 10 7 7 7 6 12 11 11 13 . . 2 . . . 2 1 6 . . . . 1 . 2 . . 1 . 1 6 6 Naked Turns . | . . . . . . . . . . . . . . . . . . . . . . . . . . . . . . . . . . Heaviest Build 98 | 15 31 38 42 43 43 65 67 73 73 74 44 45 45 49 51 48 61 87 87 41 45 43 44 43 37 50 56 49 65 59 90 90 98 Greatest Support 123 | 26 40 16 16 12 12 12 69 46 60 28 56 46 48 48 48 48 98 113 123 41 46 45 45 52 46 52 57 50 66 82 89 93 107 Greatest Overweight (x) 7 | . 3 2 3 3 3 5 5 7 7 5 . . 1 1 1 . 1 . . . . . 1 1 . . 1 . 1 . 1 1 6 Average Overweight (x) . | . 1 1 2 3 3 4 1 4 4 2 . . . . . . . . . . . . . . . . . . . . . . . Largest Inventory Capacity 25 | 8 15 15 15 15 15 20 20 20 20 20 20 15 15 15 15 15 15 20 20 10 10 10 10 10 10 10 10 10 10 10 25 25 25 Average Capacity 15 | 6 12 15 15 15 15 19 20 20 20 20 15 15 15 15 15 15 15 15 19 10 10 10 10 10 10 10 10 10 10 10 14 25 25 Most Carried 25 | 5 13 15 15 15 15 16 14 20 20 20 20 15 15 15 15 15 15 16 20 10 10 10 10 10 10 10 10 10 10 10 25 25 25 Average Carried 14 | 2 9 14 14 15 15 15 13 18 19 18 14 14 14 14 14 15 14 14 18 9 9 10 10 9 10 9 9 7 9 9 12 24 23 Final Capacity 25 | 8 15 15 15 15 15 20 20 20 20 20 15 15 15 15 15 15 15 20 10 10 10 10 10 10 10 10 10 10 10 10 25 25 25 Final Carried 25 | 5 13 14 15 15 15 15 14 20 20 20 15 15 15 15 15 15 15 16 10 9 10 10 10 10 10 10 10 10 10 10 25 25 25 Scrap Suit Usage (%) 3 | . . . . . . . . . . . . . . . . . . . . . 1 1 . . . 38 62 93 5 . . . . Parts Cannibalized 19 | . . . . . . . . . . . . . . . . . . . . . . 3 . . . 14 2 . . . . . . Class Distribution -------------------- 17% | Tank 17% | Commander-Mutant 16% | Scavenger-Sprinter 14% | Mutant 6% | Scavenger-Tank 6% | Scavenger-Mutant 5% | Sprinter 5% | Scavenger-Scout 3% | Machinist-Sprinter 3% | Scavenger-Skirmisher Dominant Class ---------------- Mutant | -10/Materials Mutant | -10/Mines Tank | -9/Materials Tank | -9/Mines Tank | -9/Exiles Tank | -8/Mines Tank | -8/Materials Tank | -8/Storage Commander-Tank | -8/Recycling Commander-Mutant | -8/Scraptown Mutant | -6/Factory Mutant | -6/Waste Mutant | -6/Factory Commander-Mutant | -6/Extension Commander-Mutant | -6/Cetus Scavenger-Gunner | -6/Archives Scavenger-Gunner | -6/Hub_04(d) Scavenger-Tank | -6/Garrison Scavenger-Skirmisher | -5/Factory Scavenger-Sprinter | -5/Waste Scavenger-Sprinter | -5/Factory Scavenger-Sprinter | -5/Upper Caves Scavenger-Mutant | -5/Upper Caves Machinist-Sprinter | -5/Warlord Scavenger-Sprinter | -4/Proximity Caves Scavenger-Scout | -4/Factory Scavenger-Sprinter | -4/Armory Scavenger-Sprinter | -4/Lab Scavenger-Scout | -3/Research Sprinter | -3/Quarantine Scavenger-Sprinter | -3/Protoforge Sprinter | -2/Research Scavenger-Mutant | -2/Testing Resources | -11 -10 -10 -9 -9 -9 -8 -8 -8 -8 -8 -6 -6 -6 -6 -6 -6 -6 -6 -5 -5 -5 -5 -5 -5 -4 -4 -4 -4 -3 -3 -3 -2 -2 ----------- Run | Yrd Mat Min Mat Min Exi Min Mat Sto Rec Scr Fac Was Fac Ext Cet Arc Hub Gar Fac Was Fac Upp Upp War Pro Fac Arm Lab Res Qua Frg Res Tes Matter Collected 19744 | 256 349 242 1406 136 . 275 465 1510 348 1056 715 30 238 126 105 102 291 737 699 306 769 414 424 295 . 885 397 . 889 151 1866 171 4091 Remotely 3411 | . . . . . . . . . . . . . . . . . . . . . . . . . . . . . . . . . 3411 Salvage Created 34883 | 29 615 229 1500 83 . 249 670 1649 699 470 915 350 170 524 . 124 230 1056 809 469 1937 371 359 233 . 1830 510 . 1418 290 2774 1085 13236 Parts 1143 | 4 37 18 92 7 . 11 36 88 30 26 46 1 14 35 . 11 15 37 31 10 71 15 11 6 . 75 26 . 56 13 126 56 139 Haulers Intercepted 40 | . 2 . 6 . . . 2 6 . . 4 . . . . . . . . . 7 1 . . . 5 . . 6 . . 1 . Recyclers Shooed 4 | . . . 1 . . . . 1 . . . . . . . . . . . . 2 . . . . . . . . . . . . Parts Field Recycled 32 | . . . . . . . . . . 32 . . . . . . . . . . . . . . . . . . . . . . . Retrieved Matter 610 | . . . . . . . . . . 610 . . . . . . . . . . . . . . . . . . . . . . . Parts Self-Destructed 35 | . . . . . . . . . . . . . . . . . . . . . . 24 11 . . . . . . . . . . Prevented 4 | . . . . . . . . . . . . . . . . . . . . . . 2 2 . . . . . . . . . . Parts Restored 14 | . . . . . . . . . . . . . . . . . . . . . . . . . . . . . . . 1 . 13 Broken 1 | . . . . . . . . . . . . . . . . . . . . . . . . . . . . . . . 1 . . Faulty 13 | . . . . . . . . . . . . . . . . . . . . . . . . . . . . . . . . . 13 Kills | -11 -10 -10 -9 -9 -9 -8 -8 -8 -8 -8 -6 -6 -6 -6 -6 -6 -6 -6 -5 -5 -5 -5 -5 -5 -4 -4 -4 -4 -3 -3 -3 -2 -2 ------- Run | Yrd Mat Min Mat Min Exi Min Mat Sto Rec Scr Fac Was Fac Ext Cet Arc Hub Gar Fac Was Fac Upp Upp War Pro Fac Arm Lab Res Qua Frg Res Tes Combat Hostiles Destroyed 454 | . 13 7 33 . . 8 11 23 12 1 12 . 1 7 . 1 3 18 12 2 15 8 4 3 . 16 9 . 9 . 56 15 155 Melee 31 | . . . . . . . . . . 1 1 . . 4 . . . . . . . . . . . 1 . . . . 19 5 . Guns 159 | . 6 1 12 . . 3 8 17 12 . 5 . . 1 . 1 3 18 11 2 6 8 4 . . 15 7 . 6 . 3 . 10 Cannons 200 | . 7 4 11 . . 1 . 6 . . . . . 1 . . . . . . 5 . . 3 . . . . . . 11 7 144 AOE 55 | . . 2 10 . . 4 3 . . . 6 . . . . . . . . . 4 . . . . . 2 . 3 . 18 3 . Classes Destroyed 33 | 1 5 1 5 . . 1 1 . 2 2 . . . 1 . . 1 1 . 1 . . 1 1 . 1 . . . . 3 1 4 Worker 12 | . . . 1 1 . . 4 . . . . . . . . . . . . . 1 . . . . 3 . . . . 1 1 . Builder 14 | . 1 . . . . . 1 2 1 . 2 . 2 1 . . . . . . . . . . . 2 . . . . 2 . . Tunneler 6 | 1 . 3 . 1 . 1 . . . . . . . . . . . . . . . . . . . . . . . . . . . Hauler 40 | . 2 . 6 . . . 2 6 . . 4 . . . . . . . . . 7 1 . . . 5 . . 6 . . 1 . Recycler 18 | . . . 3 1 . 1 1 3 1 . . . . . . . . . 1 . 2 . . . . 2 . . 1 1 . 1 . Carrier 1 | . . . . . . . . . . . . . . . . . . . . . . . . . . . . . . . . 1 . Minesweeper 1 | . . . . . . . . . . . . . . . . . . . . . . . 1 . . . . . . . . . . Mechanic 13 | . . . . . . . . . . . . . . . . . . . . . . . . . . . . . . . . . 13 Operator 13 | . . . 2 . . . . 3 . . 1 . . . . 1 . . . . 2 . . . . 2 . . 2 . . . . Drone 12 | . . . . . . . . . . . . . . . . . . . . . . . . . . 1 . . . . 11 . . Watcher 24 | . 3 . 5 . . . 1 2 . . 1 . . 1 . . . 1 . . 4 . . . . . 2 . 2 1 . . 1 Swarmer 66 | . 3 2 10 . . 4 3 . . . 5 . . . . . . 9 1 . . 5 . . . 4 4 . 3 . 11 2 . Cutter 9 | . . . . . . . . . . . . . . . . . . 2 . . . . . . . . . . . . . 7 . Saboteur 8 | . . . . . . . . . . . . . . . . . . . . . . . . . . . . . . . 1 1 6 Grunt 167 | . 10 4 12 . . 3 6 12 2 . 5 . . 2 . . . 5 . . 12 3 2 1 . 6 1 . 4 . 6 3 68 Brawler 20 | . . . 1 . . . . . . . . . 1 . . . . 1 . . 1 . . . . . . . . . 3 . 13 Duelist 17 | . . . . . . . 1 . . . 1 . . . . . . 1 . . . . . . . . . . 1 . 2 . 11 Protector 14 | . . . . . . . . . 1 . . . . 1 . . . . . . . . . . . . . . . . . . 12 Researcher 2 | . . . . . . . . . . . . . . . . . . . . . . . . . . . . . . . 1 . 1 Sentry 47 | . . . 10 . . . 1 9 4 . . . . 2 . 1 . . 3 . . . 1 . . 4 1 . . . 8 . 3 Demolisher 1 | . . 1 . . . . . . . . . . . . . . . . . . . . . . . . . . . . . . . Specialist 6 | . . . . . . . . . . . . . . . . . 2 . . . . . . 1 . . . . . . . . 3 Hunter 17 | . . . . . . 1 . 2 2 . . . . . . . . . 2 . . . . . . 1 1 . . . . . 8 Programmer 41 | . . . . . . . . . 3 . 1 . . . . . . . 6 . 2 . . 1 . . 2 . . . 3 2 21 Behemoth 3 | . . . . . . . . . . . . . . 2 . . . . . . . . 1 . . . . . . . . . . Compactor 2 | . . . . . . . . . . . . . . . . . . . . 2 . . . . . . . . . . . . . Lightning 1 | . . . . . . . . . . . . . . . . . 1 . . . . . . . . . . . . . . . . Hotshot 3 | . . . . . . . . . . . . . . . . . . . . . . . . . . . . . . . 3 . . Decapitator 3 | . . . . . . . . . . . . . . . . . . . . . . . . . . . . . . . 3 . . Immortal 4 | . . . . . . . . . . . . . . . . . . . . . . . . . . . . . . . 4 . . Investigator 2 | . . . . . . . . . . . . . . . . . . . . . . . . . . . . . . . . . 2 Striker 5 | . . . . . . . . . . . . . . . . . . . . . . . . . . . . . . . . . 5 Executioner 4 | . . . . . . . . . . . . . . . . . . . . . . . . . . . . . . . . . 4 Alpha 7 1 | . . . . . . . . . . . . . . . . . . . . . . . . . . . . . . . . . 1 V-Series 1 | . . . . . . . . . . . . . . . . . . . . . . . . . . . . . . . 1 . . Scrapper 1 | . . . . . . . . . . 1 . . . . . . . . . . . . . . . . . . . . . . . Scrapoid 7 | . . . . . . . . . . 5 . . . . . . . . . . 1 . . . . . . . 1 . . . . Packrat 1 | . . . . . . . . . . . . . . . . . . . . . . . 1 . . . . . . . . . . Martyr 2 | . . . . . . . . . . . . 1 1 . . . . . . . . . . . . . . . . . . . . Mutant 1 | . . . . . . . . . . . . . . . . . . . . . . . . 1 . . . . . . . . . Best Kill Streak 41 | 1 4 3 7 1 . 4 7 6 5 1 6 . 1 2 . 1 2 13 5 1 7 5 2 1 . 4 4 . 4 1 10 6 41 Combat Bots Only 37 | . 3 3 6 . . 4 4 4 4 1 6 . 1 2 . 1 2 13 4 1 4 5 2 1 . 4 4 . 3 . 8 3 37 Max Kills in Single Turn 6 | 1 2 1 3 1 . 2 2 1 2 1 1 1 1 1 . 1 1 2 2 1 6 2 1 2 . 2 2 . 2 1 4 2 4 Gunslinging 1 | . 1 . . . . . . . 1 . . . . . . . . 1 . . . . . . . 1 . . . . . . . Exploded 4 | . . 1 3 . . 2 2 . . . 1 . . . . . . . . . 4 . . . . . 2 . 2 . 3 2 . Melee 1 | . . . . . . . . . . 1 1 . . 1 . . . . . . . . . . . 1 . . . . 1 1 . Uniques/NPCs Destroyed . | . . . . . . . . . . . . . . . . . . . . . . . . . . . . . . . . . . Combat | -11 -10 -10 -9 -9 -9 -8 -8 -8 -8 -8 -6 -6 -6 -6 -6 -6 -6 -6 -5 -5 -5 -5 -5 -5 -4 -4 -4 -4 -3 -3 -3 -2 -2 -------- Run | Yrd Mat Min Mat Min Exi Min Mat Sto Rec Scr Fac Was Fac Ext Cet Arc Hub Gar Fac Was Fac Upp Upp War Pro Fac Arm Lab Res Qua Frg Res Tes Hostile Shots Fired 2084 | . 37 21 101 . . 41 30 115 62 74 60 . 14 40 9 5 27 45 60 . 59 14 14 26 . 85 54 . 44 77 465 306 199 Missed 825 | . 13 5 27 . . 11 8 32 15 24 27 . 5 20 3 1 5 10 15 . 28 6 5 20 . 29 25 . 21 46 205 137 82 Deflected 13 | . . . . . . . . . . . . . . . . . . . . . . . . . . . . . . . 10 3 . Hits 1259 | . 24 16 74 . . 30 22 83 47 50 33 . 9 20 6 4 22 35 45 . 31 8 9 6 . 56 29 . 23 31 260 169 117 Melee 50 | . . . . . . . . . . . . . . . . . . 2 . . . . . . . . . . . . 17 31 . Projectile 1209 | . 24 16 74 . . 30 22 83 47 50 33 . 9 20 6 4 22 33 45 . 31 8 9 6 . 56 29 . 23 31 243 138 117 AOE 18 | . . 4 . . . . . . . . . . . . . . . 3 . . . . . . . . . . . . 2 7 2 Critical Strikes 82 | . . . . . . . 1 2 4 1 2 . . . 1 1 2 1 3 . 4 1 . 1 . 4 1 . 1 . 22 20 10 Actively Blocked 8 | . . . . . . . . . . . 2 . . . . . . . . . . . . . . . . . . . 2 4 . Part Disruptions 3 | . . . . . . . . . . . . . 1 . . . . . . . . . . . . . . . . 1 1 . . Actively Blocked 1 | . . . . . . . . . . . . . . . . . . . . . . . . . . . . . . 1 . . . Damage Taken 25265 | . 301 331 1014 . . 496 392 1306 635 596 541 . 242 198 162 112 531 642 355 27 635 133 196 211 . 997 545 . 465 671 6712 4437 2382 Core 3567 | . 16 110 139 . . 59 30 211 14 159 89 . 54 21 26 24 63 60 4 . 94 20 47 59 . 63 37 . 63 61 605 1093 346 Absorbed by Shields 1359 | . . . . . . . . . 3 71 60 . . 9 . . . . . . . . . . . . . . . . 164 833 219 Reduced by Siege Mode 81 | . . . . . . . . . . . . . . . . . . . . . . . . . . . . . . . . . 81 Redirected to Shielding 1156 | . . . . . . . . . . . 101 . . . . . . . . . 28 . . . . . . . . 35 498 494 . Ignored by Resistances 1246 | . . . . . . . . . . . . . . . . . . . 569 . . . . . . 123 . . . . 313 35 206 Regen/Repaired (Parts) 4753 | . . . . . . . . . . . . 7 79 86 1 . 102 . 147 . . 22 . 77 . 131 20 . . 190 1560 1167 1164 Core Remaining (%) 61 | 100 . 49 . . . 50 . . . 24 . . . . . . . 60 . . . . . . 77 . . 100 . . 35 . . Volleys Fired 1319 | 2 38 19 105 3 . 22 38 106 22 5 59 4 12 17 7 7 19 58 52 12 45 27 30 18 3 77 31 . 56 20 164 41 200 Largest 3 | 2 2 2 3 3 . 3 3 3 3 1 2 1 2 2 1 3 3 3 3 2 2 2 2 1 1 2 2 . 3 1 2 1 1 Hottest 280 | 60 70 53 86 84 . 84 88 88 73 32 105 35 65 135 33 100 100 100 110 70 64 64 64 105 32 64 64 . 105 105 280 140 140 Shots Fired 2317 | 4 76 33 269 9 . 58 95 284 65 5 78 4 18 28 7 18 44 155 124 22 59 52 54 18 2 145 53 . 109 20 167 41 201 Gun 1569 | 4 41 16 139 6 . 36 70 196 65 1 64 . 7 14 7 18 44 155 120 22 47 52 54 . 2 145 53 . 103 16 51 . 21 Cannon 680 | . 35 14 119 3 . 18 22 88 . . 5 4 11 14 . . . . 3 . 12 . . 16 . . . . 3 1 94 38 180 Launcher 49 | . . 3 11 . . 4 3 . . . 8 . . . . . . . . . . . . . . . . . 2 . 15 3 . Special 19 | . . . . . . . . . . 4 1 . . . . . . . 1 . . . . 2 . . . . 1 3 7 . . Kinetic 1971 | 2 38 30 258 9 . 54 92 284 65 1 64 . 7 14 7 18 44 155 123 22 59 52 54 15 2 145 53 . 103 16 . . 185 Thermal 211 | . . . . . . . . . . . 5 4 11 14 . . . . . . . . . 1 . . . . 3 1 118 38 16 Explosive 49 | . . 3 11 . . 4 3 . . . 8 . . . . . . . . . . . . . . . . . 2 . 15 3 . Electromagnetic 67 | 2 38 . . . . . . . . . . . . . . . . . . . . . . . . . . . . . 27 . . Robot Hit Streak 29 | 2 14 5 21 4 . 7 10 16 18 6 8 7 6 7 5 6 8 22 24 21 10 6 6 7 . 7 9 . 7 4 22 2 29 Robot Miss Streak 6 | 1 3 2 4 . . 4 3 5 2 . 2 . 1 3 1 3 6 3 2 1 2 4 2 2 . 5 4 . 4 3 6 4 4 Penetration Max 3 | . . . . . . . 1 1 . . 1 . . 1 1 . 1 1 1 . 2 1 . 2 . 1 . . 1 . 1 1 3 Secondary Targets 19 | . 1 . . . . . . 1 6 . 1 . . . . . 1 3 1 . . 1 . . . 3 . . 1 . . . . Max Gunslinging Chain 1 | . 1 . . . . . . 1 1 . 1 . . . . . 1 1 1 . . 1 . . . 1 . . 1 . . . . Shots Hit Robots 1521 | 2 51 20 155 3 . 31 59 184 45 24 46 8 15 21 5 11 25 98 58 21 63 21 27 13 . 74 29 . 63 10 128 25 186 Core Hits 1399 | 1 27 13 68 3 . 17 30 67 22 6 38 3 5 15 2 6 10 57 20 2 39 12 9 6 . 45 15 . 34 2 84 43 698 Critical Kills 205 | . . . . . . . . 1 2 . . . 2 1 . 2 1 2 5 2 7 1 1 4 . 8 2 . 1 . 2 . 161 Critical Parts Destroyed 294 | . . . . . . . . . . . . . . . . . 2 7 6 1 1 . 1 10 . 4 4 . 3 . . . 255 Critical Strikes 548 | . . . 2 . . 1 . 4 2 1 . . 2 3 . 2 3 9 11 9 13 1 3 14 . 16 6 . 7 . 7 1 431 Burn 1 | . . . . . . . . . . . . . . . . . . . . . . . . . . . . . . . 1 . . Meltdown 5 | . . . . . . . . . . . . . 1 1 . . . . . . . . . . . . . . . . 2 . 1 Destroy 516 | . . . . . . . . 1 2 . . . 1 . . 2 3 9 11 9 8 1 3 14 . 12 6 . 4 . . . 430 Blast 6 | . . . 2 . . 1 . 3 . . . . . . . . . . . . . . . . . . . . . . . . . Sever 20 | . . . . . . . . . . 1 . . . 2 . . . . . . 5 . . . . 4 . . 3 . 4 1 . Melee Attacks 354 | . . . . . . . . 1 1 28 38 4 19 14 1 . . 1 1 . 49 2 4 . . 21 20 3 34 19 67 22 5 Impact . | . . . . . . . . . . . . . . . . . . . . . . . . . . . . . . . . . . Slashing 343 | . . . . . . . . . . 25 38 4 19 14 1 . . 1 1 . 49 2 4 . . 21 20 3 34 19 66 22 . Piercing 6 | . . . . . . . . . . . . . . . . . . . . . . . . . . . . . . . 1 . 5 Sneak Attacks 93 | . . . . . . . . 1 1 19 6 4 5 5 . . . . . . 12 1 4 . . 6 2 . 7 1 15 4 . Combat Hostiles 11 | . . . . . . . . . . . 1 . . 4 . . . . . . . . . . . 2 . . 1 . 3 . . Follow-up Attacks . | . . . . . . . . . . . . . . . . . . . . . . . . . . . . . . . . . . Damage Inflicted 57579 | 28 892 500 3560 46 . 849 1399 3358 650 1046 1947 413 755 1218 41 311 659 2306 1969 571 4038 668 1088 302 . 3103 1223 . 2980 724 12428 4275 4232 Guns 21067 | 28 471 122 1372 46 . 343 936 2323 650 . 530 . 174 366 41 311 659 2306 1969 571 937 515 740 . . 1879 749 . 1764 29 922 . 314 Cannons 12082 | . 364 218 1184 . . 220 243 1035 . . 60 125 178 195 . . . . . . 170 . . 302 . . . . . . 3172 869 3747 Explosions 9879 | . 57 160 1004 . . 286 220 . . . 476 . . . . . . . . . 859 . . . . 336 290 . 311 . 3622 2258 . Melee 14542 | . . . . . . . . . . 1037 881 288 403 657 . . . . . . 2072 153 348 . . 888 184 . 905 695 4712 1148 171 Ramming 9 | . . . . . . . . . . 9 . . . . . . . . . . . . . . . . . . . . . . . Kinetic 26865 | 13 389 340 2556 46 . 563 1179 3358 650 . 530 . 174 366 41 311 659 2306 1969 571 1107 515 740 302 . 1879 749 . 1764 29 . . 3759 Thermal 5714 | . 57 . . . . . . . . . 60 125 178 195 . . . . . . . . . . . 218 . . . . 3710 869 302 Explosive 9604 | . . 160 1004 . . 286 220 . . . 476 . . . . . . . . . 859 . . . . 118 290 . 311 . 3622 2258 . Electromagnetic 845 | 15 446 . . . . . . . . . . . . . . . . . . . . . . . . . . . . . 384 . . Impact . | . . . . . . . . . . . . . . . . . . . . . . . . . . . . . . . . . . Slashing 14331 | . . . . . . . . . . 1037 881 288 403 657 . . . . . . 2072 153 348 . . 888 184 . 905 695 4672 1148 . Piercing 211 | . . . . . . . . . . . . . . . . . . . . . . . . . . . . . . . 40 . 171 Highest Corruption 16 | . . . . . . . . 1 5 . . . 6 . . . 2 2 7 9 14 12 12 12 11 . 1 . 2 . 14 11 16 Average Corruption 6 | . . . . . . . . 1 3 . . . 2 . . . 1 2 5 8 10 12 12 11 11 . 1 . 1 . 7 5 12 Corruption Purged 14 | . . . . . . . . . . . . . 6 . . . . . . . 5 . . . . . 1 . 2 . . . . Corruption Blocked . | . . . . . . . . . . . . . . . . . . . . . . . . . . . . . . . . . . Effects 381 | . . . . . . . . 2 30 . . . 5 . . . . 21 30 6 56 37 34 6 9 . 1 . 18 . 44 17 65 Message Errors 88 | . . . . . . . . . 8 . . . 3 . . . . 7 6 2 14 11 8 . 4 . 1 . 1 . 7 5 11 Matter Fused 107 | . . . . . . . . 2 7 . . . . . . . . 6 9 . 17 6 16 1 2 . . . 11 . 11 5 14 Heat Flow Errors 40 | . . . . . . . . . 4 . . . 1 . . . . 3 5 . 6 6 2 2 1 . . . 1 . 4 2 3 Energy Discharges 33 | . . . . . . . . . 1 . . . . . . . . 2 2 . 5 5 3 . . . . . 1 . 4 2 8 Parts Rejected 4 | . . . . . . . . . 1 . . . . . . . . . . . . . . . . . . . . . 1 1 1 Parts Fused 1 | . . . . . . . . . . . . . . . . . . . . . . . . . . . . . . . . . 1 Data Loss (minor) 34 | . . . . . . . . . 4 . . . . . . . . . 4 . 4 1 1 . 1 . . . 2 . 7 . 10 Data Loss (major) 22 | . . . . . . . . . 2 . . . . . . . . 1 2 . 4 3 1 1 . . . . . . 1 . 7 Misfires 17 | . . . . . . . . . 1 . . . 1 . . . . 1 1 . 1 1 1 . . . . . 2 . 3 1 4 Alerts 11 | . . . . . . . . . . . . . . . . . . 1 . 2 1 2 1 1 . . . . . . . . 3 Misdirections 9 | . . . . . . . . . . . . . . . . . . . . . 3 . . 1 . . . . . . 5 . . Weapon Failures 15 | . . . . . . . . . 2 . . . . . . . . . 1 2 1 2 1 . 1 . . . . . 1 1 3 Overload Shots 11 | . . . . . . . . . . . 2 . . 4 . . . . . . . . . 1 . . . . 3 1 . . . Effects 1 | . . . . . . . . . . . . . . . . . . . . . . . . . . . . . . 1 . . . Energy Bleed 1 | . . . . . . . . . . . . . . . . . . . . . . . . . . . . . . 1 . . . Overflow Damage 2923 | . . 52 46 . . . 26 . . . 47 66 86 7 . . . . . . 289 80 106 . . 272 33 . 46 209 1275 263 20 Projectiles 272 | . . . 17 . . . . . . . . . 13 . . . . . . . . . . . . . . . . . 120 102 20 Explosions 538 | . . 52 29 . . . 26 . . . . . . . . . . . . . 60 . . . . 108 . . . . 263 . . Melee 2113 | . . . . . . . . . . . 47 66 73 7 . . . . . . 229 80 106 . . 164 33 . 46 209 892 161 . Knockbacks 62 | . 4 . 11 . . 3 5 5 . . . . . . . . . . . . . . . . . . . . . . . . 34 Impact . | . . . . . . . . . . . . . . . . . . . . . . . . . . . . . . . . . . Kinetic 58 | . 3 . 10 . . 3 5 5 . . . . . . . . . . . . . . . . . . . . . . . . 32 Secondary 4 | . 1 . 1 . . . . . . . . . . . . . . . . . . . . . . . . . . . . . 2 Self-Inflicted Damage 542 | . 40 27 122 . . 30 52 . . 4 33 . . . . . . . . . . . . . . . . . . . 93 141 . Shots 14 | . 1 1 4 . . 1 2 . . . 1 . . . . . . . . . . . . . . . . . . . 1 3 . Rammed 2 | . . . . . . . . 1 . 1 . . . . . . . . . . . . . . . . . . . . . . . Targets Rammed 2 | . . . . . . . . 1 . 1 . . . . . . . . . . . . . . . . . . . . . . . Kicked . | . . . . . . . . . . . . . . . . . . . . . . . . . . . . . . . . . . Crushed . | . . . . . . . . . . . . . . . . . . . . . . . . . . . . . . . . . . Highest Temperature 933 | . 90 23 265 27 . 233 199 285 311 43 92 . 226 65 . 54 237 305 282 249 302 296 186 258 251 301 126 64 310 . 12 140 933 Average Temperature 69 | . 28 11 54 14 . 99 72 87 79 19 18 . 105 33 . 29 79 109 58 93 62 71 57 45 42 83 31 24 88 . 12 18 111 Received Heat Transfer 4274 | . 126 69 318 . . 198 198 486 126 270 135 . 15 76 . . 144 81 18 . 165 18 24 . . 271 106 . 45 84 865 343 93 Effects 20 | . . . . . . . . 4 . . . . . . . . . . . . 7 1 . 4 . . . . 1 . . . 3 Energy Bleed 2 | . . . . . . . . 1 . . . . . . . . . . . . . 1 . . . . . . . . . . . Interference 15 | . . . . . . . . 3 . . . . . . . . . . . . 7 . . 4 . . . . 1 . . . . Damage (major) 2 | . . . . . . . . . . . . . . . . . . . . . . . . . . . . . . . . . 2 Damage (core) 1 | . . . . . . . . . . . . . . . . . . . . . . . . . . . . . . . . . 1 Siege Activations 3 | . . . . . . . . . . . . . . . . . . . . . . . . . . . . . . . . . 3 Total Turns 697 | . . . . . . . . . . . . . . . . . . . . . . . . . . . . . . . . . 697 Longest Duration 629 | . . . . . . . . . . . . . . . . . . . . . . . . . . . . . . . . . 629 Martial Activations . | . . . . . . . . . . . . . . . . . . . . . . . . . . . . . . . . . . Shielding Activations . | . . . . . . . . . . . . . . . . . . . . . . . . . . . . . . . . . . Robots Disrupted . | . . . . . . . . . . . . . . . . . . . . . . . . . . . . . . . . . . Combat Hostiles . | . . . . . . . . . . . . . . . . . . . . . . . . . . . . . . . . . . Robots Corrupted 2 | . . . . . . . . . . . . . . . . . . . . . . . . . . . . . . . 2 . . Combat Hostiles 2 | . . . . . . . . . . . . . . . . . . . . . . . . . . . . . . . 2 . . Parts Fried 7 | . 1 . . . . . . . . . . . . . . . . . . . . . . 1 . . . . . . 5 . . Impact Corruptions . | . . . . . . . . . . . . . . . . . . . . . . . . . . . . . . . . . . Robots Melted 5 | . . . . . . . . . . . . . 1 1 . . . . . . . . . . . . . . . . 2 . 1 Combat Hostiles 5 | . . . . . . . . . . . . . 1 1 . . . . . . . . . . . . . . . . 2 . 1 Parts Melted 12 | . . . . . . . . . . . 1 . 1 4 . . . . . . . . . . . . 1 . . . 1 3 1 Heat Transferred 5094 | . 100 . . . . . . . . . 80 200 250 276 . . . . . . . . . . . 150 . . . . 3227 561 250 Parts Sabotaged . | . . . . . . . . . . . . . . . . . . . . . . . . . . . . . . . . . . Parts Stolen . | . . . . . . . . . . . . . . . . . . . . . . . . . . . . . . . . . . Parts Stripped . | . . . . . . . . . . . . . . . . . . . . . . . . . . . . . . . . . . Power Chain Reactions 2 | . 2 . . . . . . . . . . . . . . . . . . . . . . . . . . . . . . . . Alert | -11 -10 -10 -9 -9 -9 -8 -8 -8 -8 -8 -6 -6 -6 -6 -6 -6 -6 -6 -5 -5 -5 -5 -5 -5 -4 -4 -4 -4 -3 -3 -3 -2 -2 ------- Run | Yrd Mat Min Mat Min Exi Min Mat Sto Rec Scr Fac Was Fac Ext Cet Arc Hub Gar Fac Was Fac Upp Upp War Pro Fac Arm Lab Res Qua Frg Res Tes Maximum Alert Level 5 | . . . 3 1 . . . 2 1 . 3 1 3 3 2 1 1 3 2 1 5 . . . . 4 5 . 3 4 5 5 5 Low Security (%) 32 | 100 100 100 33 77 . 100 100 27 95 . 61 20 5 . . . 61 6 . 77 14 . . . . 12 . . 12 . . . . Level 1 13 | . . . 21 22 . . . 68 4 . 11 80 11 9 . 100 38 3 33 22 12 . . . . 9 . . 10 . . . . Level 2 20 | . . . 22 . . . . 4 . . 4 . 77 56 100 . . 70 66 . 17 . . . . 20 1 . 33 65 4 . . Level 3 14 | . . . 23 . . . . . . . 23 . 5 33 . . . 19 . . 28 . . . . 24 29 . 43 33 25 . . Level 4 6 | . . . . . . . . . . . . . . . . . . . . . 19 . . . . 33 43 . . 1 37 . . Level 5 5 | . . . . . . . . . . . . . . . . . . . . . . . . . . . 25 . . . 32 25 24 High Security 7 | . . . . . . . . . . . . . . . . . . . . . 8 . . . . . . . . . . 74 75 Max Security . | . . . . . . . . . . . . . . . . . . . . . . . . . . . . . . . . . . Sterilizations 1 | . . . . . . . . . . . . . . . . . . . . . . . . . . . . . . . . . 1 Peak Influence 5528 | 5 164 92 816 299 . 149 187 409 221 . 792 268 764 1032 577 329 251 813 597 204 1752 . . . . 1458 1717 . 966 1143 2953 3276 5528 Initial 1820 | . . 31 13 299 . . . 74 147 . . 268 131 312 554 218 104 102 426 200 102 . . . . . 714 . . 519 582 1660 1820 Average 724 | . 68 25 403 109 . 43 92 275 139 . 252 228 525 608 506 286 178 596 466 174 773 . . . . 800 1323 . 645 710 1459 2565 3113 Influence Increases 29192 | 5 494 256 1306 16 . 239 357 924 577 . 1287 . 1200 1700 322 171 363 751 752 16 2772 213 120 135 . 1946 1721 . 1592 864 3149 1986 3958 Destroy 0b10 Robot/C 12080 | . 260 140 660 . . 160 220 460 320 . 520 . 460 680 160 80 160 480 420 . 840 180 80 60 . 400 600 . 440 . 920 420 2960 Destroy 0b10 Robot/NC 1000 | 5 30 15 85 15 . 10 45 80 20 . 55 . 30 30 10 5 5 20 5 . 115 5 5 . . 80 10 . 65 20 85 15 135 Destroy Leader 2086 | . 70 40 202 . . 30 46 176 . . 96 . 102 64 . . 40 30 110 . 174 10 20 . . 100 114 . 106 2 90 102 362 Allied During Kill 2288 | . . . . . . . . . 53 . 52 . 384 681 142 54 28 55 69 . 281 3 . . . 70 285 . 118 . . . 13 Trap Triggered on 0b10 60 | . . . . . . . . . . . . . . . . . . . . . 40 . . . . 20 . . . . . . . Successful Hack 1117 | . 22 . 38 . . . 4 16 2 . 55 . 93 62 . . 20 30 58 . 211 . . . . 53 87 . 136 101 29 . 100 Select Force Hacks 400 | . 60 . 60 . . . . 60 150 . 20 . . . . . 50 . . . . . . . . . . . . . . . . Disable Machine 1965 | . 45 . 75 . . 15 15 45 . . 135 . 75 60 . 30 45 . 30 . 210 . . . . 465 105 . 120 75 285 75 60 Anti-Garrison Action 200 | . . . . . . . . . . . . . . . . . . 50 . . . . . . . . . . . . 150 . . Destroy Structure 2281 | . 7 31 96 1 . 24 27 27 2 . 99 . 26 18 10 2 15 41 60 16 226 . . . . 368 100 . 262 36 390 204 193 Partial Spotted 1005 | . . . . . . . . . . . 60 . 30 90 . . . . . . 90 . . . . 135 135 . 150 30 105 180 . Lose Combat Pursuer 4710 | . . 30 90 . . . . 60 30 . 195 . . 15 . . . 45 . . 585 15 15 75 . 255 285 . 195 600 1095 990 135 Influence Decreases 23664 | 5 411 304 573 784 . 239 180 723 835 120 521 578 749 1349 766 418 515 85 991 444 1166 995 633 592 . 488 1534 1645 668 753 1231 1703 1666 Entered New Map 10935 | . . 52 22 469 . . . 103 231 120 . 498 57 327 436 328 195 45 387 374 44 649 185 457 . . 744 1645 . 405 453 1293 1416 Time Decay 8829 | 5 411 242 531 315 . 229 160 580 534 . 331 80 362 482 130 60 110 . 474 50 522 326 398 125 . 368 350 . 558 238 598 80 180 Search Patrol Dispatched 100 | . . . . . . . . . . . . . . . . . . . . . . . . . . . . . . 100 . . . Lost Part 680 | . . 10 20 . . 10 20 40 10 . 10 . . . . 10 10 . . . 10 . 10 10 . 20 30 . . 10 170 230 50 Lost Ally 2370 | . . . . . . . . . 60 . 180 . 180 240 200 20 200 40 130 20 290 20 40 . . 100 410 . 110 . 10 100 20 Purge Threat 750 | . . . . . . . . . . . . . 150 300 . . . . . . 300 . . . . . . . . . . . . Squads Dispatched 204 | . 5 . 6 1 . . 2 8 . . 15 . 7 2 . . 5 . 7 . 21 . . . . 14 10 . 15 6 17 22 41 Investigation 62 | . 5 . 3 1 . . . 3 . . 5 . 4 1 . . 2 . 3 . 8 . . . . 6 7 . 8 1 2 2 1 Extermination 25 | . . . . . . . . . . . 2 . 1 . . . . . 4 . 5 . . . . 3 2 . 1 3 3 . 1 Reinforcement 36 | . . . 2 . . . 1 3 . . 4 . 2 . . . 1 . . . 4 . . . . 1 1 . 6 1 1 6 3 Assault 72 | . . . 1 . . . . 2 . . 1 . . 1 . . . . . . 4 . . . . 1 . . . 1 11 14 36 Garrison 9 | . . . . . . . 1 . . . 3 . . . . . 2 . . . . . . . . 3 . . . . . . . Intercept . | . . . . . . . . . . . . . . . . . . . . . . . . . . . . . . . . . . Searches Triggered 1 | . . . . . . . . . . . . . . . . . . . . . . . . . . . . . . 1 . . . Construction Impeded 3 | . . . . . . . 1 . . . 1 . . . . . . . . . . . . . . . . . . . . 1 . Haulers Reinforced 6 | . . . . . . . . . . . 2 . . . . . . . . . 2 . . . . . . . 2 . . . . Active Scanning Responses . | . . . . . . . . . . . . . . . . . . . . . . . . . . . . . . . . . . Cargo Convoy Interrupts . | . . . . . . . . . . . . . . . . . . . . . . . . . . . . . . . . . . Stealth | -11 -10 -10 -9 -9 -9 -8 -8 -8 -8 -8 -6 -6 -6 -6 -6 -6 -6 -6 -5 -5 -5 -5 -5 -5 -4 -4 -4 -4 -3 -3 -3 -2 -2 --------- Run | Yrd Mat Min Mat Min Exi Min Mat Sto Rec Scr Fac Was Fac Ext Cet Arc Hub Gar Fac Was Fac Upp Upp War Pro Fac Arm Lab Res Qua Frg Res Tes Distress Signals 55 | . . . 4 . . . 3 6 1 1 3 . 2 1 2 . 1 . . . 3 . . 1 . . 1 . 12 1 2 9 2 Communications Jammed . | . . . . . . . . . . . . . . . . . . . . . . . . . . . . . . . . . . Distress Signals . | . . . . . . . . . . . . . . . . . . . . . . . . . . . . . . . . . . Times Spotted 1113 | . 19 10 56 1 . 8 17 35 19 28 32 . 12 25 7 4 13 25 16 5 69 10 3 55 . 44 40 . 41 43 146 165 165 Peak Tracking Total 48 | . 3 3 6 1 . 4 4 5 11 15 6 . 3 6 5 1 5 6 3 3 13 5 4 10 . 12 11 . 6 14 31 48 17 Tactical Retreats 113 | . . 1 6 . . . . 4 1 2 4 . . 1 . . . 2 . . 14 1 1 3 . 8 9 . 4 8 19 18 7 Traps | -11 -10 -10 -9 -9 -9 -8 -8 -8 -8 -8 -6 -6 -6 -6 -6 -6 -6 -6 -5 -5 -5 -5 -5 -5 -4 -4 -4 -4 -3 -3 -3 -2 -2 ------- Run | Yrd Mat Min Mat Min Exi Min Mat Sto Rec Scr Fac Was Fac Ext Cet Arc Hub Gar Fac Was Fac Upp Upp War Pro Fac Arm Lab Res Qua Frg Res Tes Traps Triggered 34 | . 2 . . . . . . 3 . . 4 . 1 3 . . . 4 2 . 2 . . . . . . . . . 7 4 2 Indirectly . | . . . . . . . . . . . . . . . . . . . . . . . . . . . . . . . . . . Trap Hack Attempts 17 | . . . . . . . . 17 . . . . . . . . . . . . . . . . . . . . . . . . . Triggered . | . . . . . . . . . . . . . . . . . . . . . . . . . . . . . . . . . . Disarmed 7 | . . . . . . . . 1 . . . . 6 . . . . . . . . . . . . . . . . . . . . Reprogrammed 8 | . . . 3 . . . . . . . . . . . . . . . . . 5 . . . . . . . . . . . . Reused 8 | . . . . . . . . . . . . . . . . . . . . . 4 1 1 . . 2 . . . . . . . Traps Extracted 3 | . . . 3 . . . . . . . . . . . . . . . . . . . . . . . . . . . . . . Installed 8 | . . . . . . . . . . . . . . . . . . . . . 3 1 2 . . 2 . . . . . . . Triggered 8 | . . . . . . . . . . . . . . . . . . . . . 4 1 1 . . 2 . . . . . . . Most Traps Carried 6 | . . . 3 3 3 3 3 3 3 6 6 6 6 6 6 6 6 6 6 6 6 3 3 3 3 3 1 1 . . . . . Objects Rigged 8 | . . . . . . . . . . . . . . . . . . . . . 8 . . . . . . . . . . . . Exploded 2 | . . . . . . . . . . . . . . . . . . . . . 2 . . . . . . . . . . . . Machines | -11 -10 -10 -9 -9 -9 -8 -8 -8 -8 -8 -6 -6 -6 -6 -6 -6 -6 -6 -5 -5 -5 -5 -5 -5 -4 -4 -4 -4 -3 -3 -3 -2 -2 ---------- Run | Yrd Mat Min Mat Min Exi Min Mat Sto Rec Scr Fac Was Fac Ext Cet Arc Hub Gar Fac Was Fac Upp Upp War Pro Fac Arm Lab Res Qua Frg Res Tes Machines Disabled 158 | . 3 . 6 . . 1 1 3 . 6 9 . 5 5 . 2 3 1 2 . 14 1 . 1 . 32 7 1 8 5 32 5 5 Max in Single Turn 11 | . 1 . 1 . . 1 1 1 . 1 1 . 1 1 . 1 1 1 1 . 5 1 . 1 . 11 1 1 1 1 2 1 2 Garrison Access 6 | . . . . . . . . 1 . . . . . . . . 1 . . . . . . . . . . . 2 1 1 . . Garrison Relay 1 | . . . . . . . . . . . . . . . . . . 1 . . . . . . . . . . . . . . . Network Hub 2 | . . . . . . . . . . . . . . . . . 2 . . . . . . . . . . . . . . . . Machines Repaired . | . . . . . . . . . . . . . . . . . . . . . . . . . . . . . . . . . . Machines Dismantled . | . . . . . . . . . . . . . . . . . . . . . . . . . . . . . . . . . . Machines Sabotaged 1 | . . . . . . . . . . . . . . . . . 1 . . . . . . . . . . . . . . . . Overloaded Fab Kills . | . . . . . . . . . . . . . . . . . . . . . . . . . . . . . . . . . . Hacking | -11 -10 -10 -9 -9 -9 -8 -8 -8 -8 -8 -6 -6 -6 -6 -6 -6 -6 -6 -5 -5 -5 -5 -5 -5 -4 -4 -4 -4 -3 -3 -3 -2 -2 --------- Run | Yrd Mat Min Mat Min Exi Min Mat Sto Rec Scr Fac Was Fac Ext Cet Arc Hub Gar Fac Was Fac Upp Upp War Pro Fac Arm Lab Res Qua Frg Res Tes Machines Accessed 216 | . 10 . 13 1 4 . 2 10 11 2 12 . 18 17 . . 6 3 10 . 25 1 1 1 . 17 14 . 17 6 7 3 5 Terminals 119 | . 8 . 9 . . . 2 7 6 . 4 . 10 16 . . 4 3 4 . 14 . . . . 7 8 . 6 4 3 1 3 Fabricators 23 | . . . . . . . . . . . 4 . 2 . . . . . 4 . 3 . . . . 4 4 . 1 . . 1 . Repair Stations 6 | . . . . . . . . . . . 1 . 2 1 . . . . 1 . 1 . . . . . . . . . . . . Recycling Units 30 | . 2 . 2 . . . . 2 5 . 3 . . . . . . . 1 . 4 . . . . 3 2 . 5 . . 1 . Scanalyzers 18 | . . . 2 . . . . . . . . . 3 . . . . . . . 2 . . . . 3 . . 3 1 3 . 1 Garrison Access 10 | . . . . . . . . 1 . . . . 1 . . . 2 . . . 1 . . . . . . . 2 1 1 . 1 Total Hacks 680 | . 23 . 38 1 4 . 7 21 21 5 23 . 53 39 . . 13 10 50 . 133 1 1 1 . 50 54 . 60 21 27 8 16 Successful 288 | . 14 . 23 1 4 . 3 10 15 5 11 . 31 12 . . 7 3 14 . 50 1 1 1 . 16 28 . 15 9 6 3 5 Failed 390 | . 9 . 15 . . . 4 11 6 . 12 . 22 27 . . 6 7 36 . 83 . . . . 33 26 . 44 12 21 5 11 Catastrophic 100 | . . . . . . . . 1 . . 4 . 6 2 . . 3 2 12 . 23 . . . . 9 6 . 11 4 7 2 8 Database Lockouts 2 | . . . . . . . . . . . . . . . . . . . . . . . . . . 1 . . 1 . . . . Manual 314 | . 21 . 22 . . . 4 12 20 . 11 . 12 6 . . 9 . 20 . 50 . . . . 25 26 . 35 9 25 3 4 Terminals 394 | . 21 . 25 . . . 7 16 13 . 6 . 23 37 . . 9 10 20 . 69 . . . . 21 39 . 33 16 18 2 9 Fabricators 91 | . . . . . . . . . . . 9 . 10 . . . . . 21 . 17 . . . . 16 12 . 1 . . 5 . Repair Stations 15 | . . . . . . . . . . . 1 . 3 2 . . . . 3 . 6 . . . . . . . . . . . . Recycling Units 63 | . 2 . 6 . . . . 3 8 . 7 . . . . . . . 6 . 7 . . . . 5 3 . 15 . . 1 . Scanalyzers 77 | . . . 7 . . . . . . . . . 16 . . . . . . . 27 . . . . 8 . . 8 4 3 . 4 Garrison Access 27 | . . . . . . . . 2 . . . . 1 . . . 4 . . . 7 . . . . . . . 3 1 6 . 3 Terminal Hacks 91 | . 4 . 6 1 4 . 1 6 . 5 1 . 9 9 . . 1 3 3 . 13 1 1 1 . 3 10 . 1 4 1 . 3 Record 8 | . . . . . 4 . . . . 4 . . . . . . . . . . . . . . . . . . . . . . . Robot Schematic 2 | . . . 1 . . . . . . . . . . . . . . . . . 1 . . . . . . . . . . . . Robot Analysis 1 | . . . . . . . . . . . . . . . . . . . . . 1 . . . . . . . . . . . . Prototype ID Bank 2 | . . . . . . . . 1 . . . . . . . . . . . . . . . . . . 1 . . . . . . Open Door 14 | . . . . 1 . . . 3 . . . . . 7 . . . . . . . 1 1 1 . . . . . . . . . Branch Access Points 3 | . . . . . . . . . . . . . 1 . . . . . . . 1 . . . . . . . 1 . . . . Emergency Access Points 3 | . . . . . . . . . . . . . . . . . . 1 . . . . . . . . 2 . . . . . . Terminal Index 6 | . 1 . 1 . . . . . . . . . 1 . . . . . 1 . . . . . . . 1 . . . . . 1 Alert Level 5 | . . . . . . . . . . . . . 1 . . . . . 1 . 1 . . . . 1 . . . 1 . . . Unreport Threat 5 | . . . . . . . . . . . . . 1 2 . . . . . . 2 . . . . . . . . . . . . Locate Traps 26 | . 3 . 3 . . . 1 2 . . 1 . 2 . . . 1 . 1 . 4 . . . . 2 2 . . 2 1 . 1 Disarm Traps 1 | . . . . . . . . . . . . . 1 . . . . . . . . . . . . . . . . . . . . Reprogram Traps 2 | . . . 1 . . . . . . . . . . . . . . . . . 1 . . . . . . . . . . . . Maintenance Status 1 | . . . . . . . . . . . . . . . . . . . . . . . . . . . 1 . . . . . . Recall Reinforcements 1 | . . . . . . . . . . . . . . . . . . . . . . . . . . . 1 . . . . . . Hauler Manifests 2 | . . . . . . . . . . . . . 1 . . . . . . . 1 . . . . . . . . . . . . Zone Layout 5 | . . . . . . . . . . . . . 1 . . . . . . . 1 . . . . . 2 . . 1 . . . Garrison Registry 1 | . . . . . . . . . . . . . . . . . . 1 . . . . . . . . . . . . . . . Security Stations 1 | . . . . . . . . . . . . . . . . . . 1 . . . . . . . . . . . . . . . Proto ID Catalog 1 | . . . . . . . . . . 1 . . . . . . . . . . . . . . . . . . . . . . . Protovariant Controls 1 | . . . . . . . . . . . . . . . . . . . . . . . . . . . . . . . . . 1 Fabricator Hacks 36 | . . . . . . . . . . . 3 . 6 . . . . . 8 . 6 . . . . 5 6 . . . . 2 . Network Status 7 | . . . . . . . . . . . 1 . 1 . . . . . 1 . 1 . . . . 1 1 . . . . 1 . Load Schematic 19 | . . . . . . . . . . . 2 . 3 . . . . . 4 . 3 . . . . 3 3 . . . . 1 . Build 10 | . . . . . . . . . . . . . 2 . . . . . 3 . 2 . . . . 1 2 . . . . . . Repair Station Hacks 8 | . . . . . . . . . . . . . 3 2 . . . . 1 . 2 . . . . . . . . . . . . Scan Component 6 | . . . . . . . . . . . . . 2 1 . . . . 1 . 2 . . . . . . . . . . . . Repair 2 | . . . . . . . . . . . . . 1 1 . . . . . . . . . . . . . . . . . . . Recycling Unit Hacks 5 | . . . 1 . . . . . 2 . 1 . . . . . . . . . . . . . . . 1 . . . . . . Retrieve Components 5 | . . . 1 . . . . . 2 . 1 . . . . . . . . . . . . . . . 1 . . . . . . Scanalyzer 43 | . . . 7 . . . . . . . . . 11 . . . . . . . 16 . . . . 3 . . 3 1 . . 2 Insert Component 18 | . . . 2 . . . . . . . . . 4 . . . . . . . 7 . . . . 2 . . 2 1 . . . Analyze 14 | . . . 2 . . . . . . . . . 5 . . . . . . . 7 . . . . . . . . . . . . Retrieve Study 11 | . . . 3 . . . . . . . . . 2 . . . . . . . 2 . . . . 1 . . 1 . . . 2 Garrison Access Hacks 6 | . . . . . . . . 1 . . . . . . . . 2 . . . . . . . . . . . 2 1 . . . Unlock Access 1 | . . . . . . . . . . . . . . . . . 1 . . . . . . . . . . . . . . . . Seal Access 5 | . . . . . . . . 1 . . . . . . . . 1 . . . . . . . . . . . 2 1 . . . Unauthorized Hacks 98 | . 10 . 9 . . . 2 3 13 . 6 . 2 1 . . 4 . 2 . 13 . . . . 5 11 . 8 3 5 1 . Terminals 56 | . 8 . 7 . . . 2 1 8 . 1 . 1 1 . . 4 . . . 4 . . . . 2 7 . 4 3 3 . . Track 5 | . . . . . . . . . . . . . . . . . 1 . . . 1 . . . . . 1 . . 1 1 . . Assimilate 4 | . . . . . . . . . . . . . . . . . . . . . 1 . . . . . 1 . 1 . 1 . . Botnet 24 | . 3 . 2 . . . . 1 3 . 1 . 1 1 . . . . . . 1 . . . . 2 3 . 3 2 1 . . Detonate 1 | . . . . . . . . . . . . . . . . . . . . . 1 . . . . . . . . . . . . Disrupt 1 | . . . . . . . . . . . . . . . . . 1 . . . . . . . . . . . . . . . . Operators 2 | . . . . . . . . . . . . . . . . . . . . . . . . . . . 2 . . . . . . Skim 17 | . 5 . 5 . . . 2 . 5 . . . . . . . . . . . . . . . . . . . . . . . . Sabotage 2 | . . . . . . . . . . . . . . . . . 2 . . . . . . . . . . . . . . . . Fabricators 11 | . . . . . . . . . . . 2 . 1 . . . . . 1 . 5 . . . . . 2 . . . . . . Report 1 | . . . . . . . . . . . . . . . . . . . . . 1 . . . . . . . . . . . . Prioritize 3 | . . . . . . . . . . . . . 1 . . . . . . . 1 . . . . . 1 . . . . . . Liberate 1 | . . . . . . . . . . . . . . . . . . . . . 1 . . . . . . . . . . . . Haulers 3 | . . . . . . . . . . . 1 . . . . . . . 1 . 1 . . . . . . . . . . . . Download 1 | . . . . . . . . . . . 1 . . . . . . . . . . . . . . . . . . . . . . Recompile 2 | . . . . . . . . . . . . . . . . . . . . . 1 . . . . . 1 . . . . . . Repair Stations . | . . . . . . . . . . . . . . . . . . . . . . . . . . . . . . . . . . Recycling Units 29 | . 2 . 2 . . . . 2 5 . 3 . . . . . . . 1 . 4 . . . . 3 2 . 4 . . 1 . Recyclers 1 | . . . . . . . . . . . 1 . . . . . . . . . . . . . . . . . . . . . . Tunnel 11 | . 2 . 2 . . . . 2 5 . . . . . . . . . . . . . . . . . . . . . . . . Fedlink 6 | . . . . . . . . . . . 1 . . . . . . . . . 1 . . . . 2 . . 2 . . . . Scrapoids 10 | . . . . . . . . . . . 1 . . . . . . . 1 . 3 . . . . 1 2 . 1 . . 1 . Scraphulk 1 | . . . . . . . . . . . . . . . . . . . . . . . . . . . . . 1 . . . . Scanalyzers 2 | . . . . . . . . . . . . . . . . . . . . . . . . . . . . . . . 2 . . Researchers 2 | . . . . . . . . . . . . . . . . . . . . . . . . . . . . . . . 2 . . Garrison Access . | . . . . . . . . . . . . . . . . . . . . . . . . . . . . . . . . . . Data Cores Recovered 4 | . . . 1 . . . . . . . 1 . 1 . . . . . . . . . . . . 1 . . . . . . . Used 1 | . . . . . . . . . . . . . 1 . . . . . . . . . . . . . . . . . . . . Hacking Detections 149 | . 7 . 11 . . . 1 5 6 . 10 . 16 11 . . 3 1 9 . 20 . . . . 11 9 . 13 4 5 2 5 Full Trace Events 26 | . 2 . 1 . . . . 1 1 . 2 . 4 1 . . . . 2 . 3 . . . . 2 1 . 3 . 1 1 1 Feedback Events 4 | . . . . . . . . . . . . . . . . . . . 1 . . . . . . . . . 2 . 1 . . Corruption 4 | . . . . . . . . . . . . . . . . . . . 1 . . . . . . . . . 2 . 1 . . Feedback Blocked . | . . . . . . . . . . . . . . . . . . . . . . . . . . . . . . . . . . Robot Schematics Acquired 2 | . . . 1 . . . . . . . . . . . . . . . . . 1 . . . . . . . . . . . . Robots Built 1 | . . . . . . . . . . . . . . . . . . . 1 . . . . . . . . . . . . . . Authchips 1 | . . . . . . . . . . . . . . . . . . . 1 . . . . . . . . . . . . . . Time 27 | . . . . . . . . . . . . . . . . . . . 27 . . . . . . . . . . . . . . Total Robot Build Rating 1 | . . . . . . . . . . . . . . . . . . . 1 . . . . . . . . . . . . . . Part Schematics Acquired 61 | . . . 2 . . . . . . . 11 2 14 10 . . 1 . 5 . 6 . . . . . . . . 4 3 . 3 Parts Built 11 | . . . . . . . . . . . . . 2 . . . . . 4 . 2 . . . . 1 2 . . . . . . Authchips 6 | . . . . . . . . . . . . . 2 . . . . . 1 . 1 . . . . 1 1 . . . . . . Time 551 | . . . . . . . . . . . . . 66 . . . . . 116 . 246 . . . . 67 56 . . . . . . Total Part Build Rating 62 | . . . . . . . . . . . . . 8 . . . . . 28 . 12 . . . . 4 10 . . . . . . Part Studies Acquired 11 | . . . 3 . . . . . . . . . 2 . . . . . . . 2 . . . . 1 . . 1 . . . 2 Parts Repaired 2 | . . . . . . . . . . . . . 1 1 . . . . . . . . . . . . . . . . . . . Time 103 | . . . . . . . . . . . . . 78 25 . . . . . . . . . . . . . . . . . . . Parts Recycled . | . . . . . . . . . . . . . . . . . . . . . . . . . . . . . . . . . . Recycled Matter . | . . . . . . . . . . . . . . . . . . . . . . . . . . . . . . . . . . Retrieved Matter . | . . . . . . . . . . . . . . . . . . . . . . . . . . . . . . . . . . Retrieved Components 32 | . . . 10 . . . . . 12 . 9 . . . . . . . . . . . . . . . 1 . . . . . . Parts Scanalyzed 15 | . . . 2 . . . . . . . . . 4 . . . . . . . 6 . . . . 1 . . 1 1 . . . Part Schematics Acquired 11 | . . . 2 . . . . . . . . . 3 . . . . . . . 6 . . . . . . . . . . . . Parts Damaged 5 | . . . . . . . . . . . . . 2 . . . . . . . 2 . . . . . . . . 1 . . . Bothacking | -11 -10 -10 -9 -9 -9 -8 -8 -8 -8 -8 -6 -6 -6 -6 -6 -6 -6 -6 -5 -5 -5 -5 -5 -5 -4 -4 -4 -4 -3 -3 -3 -2 -2 ------------ Run | Yrd Mat Min Mat Min Exi Min Mat Sto Rec Scr Fac Was Fac Ext Cet Arc Hub Gar Fac Was Fac Upp Upp War Pro Fac Arm Lab Res Qua Frg Res Tes Used RIF Installer . | . . . . . . . . . . . . . . . . . . . . . . . . . . . . . . . . . . Robots Hacked 13 | . . . . . . . . . 1 3 1 . . . . . . . 1 . . . . . . . . . . 3 4 . . Non-combat 3 | . . . . . . . . . 1 . 1 . . . . . . . 1 . . . . . . . . . . . . . . Combat 3 | . . . . . . . . . . 3 . . . . . . . . . . . . . . . . . . . . . . . Robot Hacks Applied 6 | . . . . . . . . . 1 3 1 . . . . . . . 1 . . . . . . . . . . . . . . parse_system 4 | . . . . . . . . . 1 3 . . . . . . . . . . . . . . . . . . . . . . . find_chute 2 | . . . . . . . . . . . 1 . . . . . . . 1 . . . . . . . . . . . . . . Manual 7 | . . . . . . . . . . . . . . . . . . . . . . . . . . . . . . 3 4 . . Relay Couplers Released 9 | . . . . . . . . . . . . . . . . . . 8 . . . . . . . . . . . . 1 . . Machine Destruction 5 | . . . . . . . . . . . . . . . . . . 4 . . . . . . . . . . . . 1 . . Programmers 4 | . . . . . . . . . . . . . . . . . . 4 . . . . . . . . . . . . . . . Fabnet Peak Effective % . | . . . . . . . . . . . . . . . . . . . . . . . . . . . . . . . . . . Robots Rewired 44 | . . . . . . . . . 19 . . . . 15 . . . 6 . . . 3 . . . . . . . . . . 1 Allies Hacked 2 | . . . . . . . . . 1 . . . . . . . . . . . 1 . . . . . . . . . . . . Hacks Repelled . | . . . . . . . . . . . . . . . . . . . . . . . . . . . . . . . . . . Allies | -11 -10 -10 -9 -9 -9 -8 -8 -8 -8 -8 -6 -6 -6 -6 -6 -6 -6 -6 -5 -5 -5 -5 -5 -5 -4 -4 -4 -4 -3 -3 -3 -2 -2 -------- Run | Yrd Mat Min Mat Min Exi Min Mat Sto Rec Scr Fac Was Fac Ext Cet Arc Hub Gar Fac Was Fac Upp Upp War Pro Fac Arm Lab Res Qua Frg Res Tes Total Allies 177 | . . . . . . . . 2 19 5 9 20 . 32 . . 5 7 6 1 28 3 . . . 5 21 . 7 . 1 5 1 Largest Group 23 | . . . . . . . . 2 19 23 6 20 19 23 22 9 7 6 6 4 7 3 2 . . 5 10 . 5 . 1 5 1 Highest-Rated Group 793 | . . . . . . . . 62 329 562 216 793 743 678 658 266 225 186 238 184 264 90 60 . . 235 481 . 323 . 10 320 160 Highest-Rated Ally 160 | . . . . . . . . 31 34 50 85 50 50 159 46 39 39 32 50 50 50 30 30 . . 47 58 . 139 . 10 64 160 Initial UFD Resources 51 | . . . . . . . . . . . 23 30 30 30 30 30 30 30 34 31 31 32 32 32 34 34 45 39 43 49 49 51 48 Total Orders 18 | . . . . . . . . . . 8 3 . . . . . . . 5 . . . 1 . . . 1 . . . . . . STAY 11 | . . . . . . . . . . 6 1 . . . . . . . 2 . . . 1 . . . 1 . . . . . . FOLLOW 5 | . . . . . . . . . . 2 1 . . . . . . . 2 . . . . . . . . . . . . . . AID 1 | . . . . . . . . . . . . . . . . . . . 1 . . . . . . . . . . . . . . EXPLORE 1 | . . . . . . . . . . . 1 . . . . . . . . . . . . . . . . . . . . . . Ally Attacks 1327 | . . . . . . . . . 15 56 76 . 178 184 105 23 53 21 32 57 231 2 2 . . 36 125 . 80 . . 37 14 Total Damage 29537 | . . . . . . . . . 335 1429 2089 . 3674 3102 1677 398 960 622 933 1172 5213 70 78 . . 728 3278 . 2148 . . 1021 610 Kills 229 | . . . . . . . . . 5 15 17 . 27 34 13 4 6 6 9 5 37 1 . . . 6 21 . 15 . . 5 3 Allies Corrupted 3 | . . . . . . . . . . . . . . . . . 2 . . . 1 . . . . . . . . . . . . Allies Melted 10 | . . . . . . . . . . 3 . . . 3 . . 1 . . . . . . 3 . . . . . . . . . Intel | -11 -10 -10 -9 -9 -9 -8 -8 -8 -8 -8 -6 -6 -6 -6 -6 -6 -6 -6 -5 -5 -5 -5 -5 -5 -4 -4 -4 -4 -3 -3 -3 -2 -2 ------- Run | Yrd Mat Min Mat Min Exi Min Mat Sto Rec Scr Fac Was Fac Ext Cet Arc Hub Gar Fac Was Fac Upp Upp War Pro Fac Arm Lab Res Qua Frg Res Tes Active Infowar (turns) 17248 | 13 1071 749 546 . . . . 776 . . 1097 175 783 1232 271 47 . . 1048 109 973 710 904 842 192 606 711 331 1665 480 1088 256 573 Sensors 13758 | . . . . . . . . . . . 1097 175 783 1232 271 47 . . 1048 109 905 710 904 842 192 579 698 331 1665 480 1086 256 348 A.S.S. 2 | . . . . . . . . . . . . . . . . . . . . . . . . . . . . . . . 2 . . Structural 2167 | . . . . . . . . . . . . . . . . . . . . . 68 . . . . 500 179 . 1174 246 . . . Seismic 2379 | 13 1071 749 546 . . . . . . . . . . . . . . . . . . . . . . . . . . . . . . T.N.C. 776 | . . . . . . . . 776 . . . . . . . . . . . . . . . . . . . . . . . . . Cloaking 497 | . . . . . . . . . . . . . . . . . . . . . . . . . . . . . . . . 4 493 Jamming 2 | . . . . . . . . . . . . . . . . . . . . . 2 . . . . . . . . . . . . Robot Analysis Total 1 | . . . . . . . . . . . . . . . . . . . . . 1 . . . . . . . . . . . . Derelict Logs Recovered 8 | . . 2 . 1 . . . . . . . . . . . . . . . . . 2 2 . 1 . . . . . . . . Drone Launches 2 | . . . . . . . . . . . 1 . . . . . 1 . . . . . . . . . . . . . . . . Drone Recoveries 1 | . . . . . . . . . . . 1 . . . . . . . . . . . . . . . . . . . . . . Exploration | -11 -10 -10 -9 -9 -9 -8 -8 -8 -8 -8 -6 -6 -6 -6 -6 -6 -6 -6 -5 -5 -5 -5 -5 -5 -4 -4 -4 -4 -3 -3 -3 -2 -2 ------------- Run | Yrd Mat Min Mat Min Exi Min Mat Sto Rec Scr Fac Was Fac Ext Cet Arc Hub Gar Fac Was Fac Upp Upp War Pro Fac Arm Lab Res Qua Frg Res Tes Turns Passed 33774 | 67 1106 861 2040 880 492 857 393 1796 1507 4535 1152 175 837 1240 271 123 239 1094 1203 109 1582 722 946 1105 192 848 792 331 1665 509 1910 642 1553 Spaces Moved 33846 | 52 767 610 1199 606 394 515 140 732 660 2753 1499 244 1326 796 178 92 143 641 805 207 2628 999 942 1304 488 1543 1393 212 3471 1272 2403 1854 978 Core 3 | 3 . . . . . . . . . . . . . . . . . . . . . . . . . . . . . . . . . Treads 204 | . 54 . . . . . 91 45 7 . . . . . . . . . . . . . . . . . . . . . . . 7 Legs 1462 | . . . . . . . . . . . . . . . . . 42 641 779 . . . . . . . . . . . . . . Wheels 8228 | 49 713 610 1199 606 394 515 49 687 653 2753 . . . . . . . . . . . . . . . . . . . . . . . Hover 4913 | . . . . . . . . . . . 1499 244 1326 796 178 92 101 . . . . . . . . . . . . . . . 677 Flight 19036 | . . . . . . . . . . . . . . . . . . . 26 207 2628 999 942 1304 488 1543 1393 212 3471 1272 2403 1854 294 Fastest Speed 9 | 50 90 115 110 125 125 125 155 145 160 105 40 40 40 40 40 40 40 110 19 19 15 19 19 12 21 15 13 20 13 22 9 12 24 Average Speed 57 | 88 115 124 129 125 125 148 162 170 167 131 40 40 40 40 40 40 68 111 107 19 18 19 46 18 21 21 25 20 26 29 22 14 49 Slowest Speed 460 | 100 160 130 135 125 125 155 240 240 246 160 40 40 98 92 92 40 170 112 113 19 19 19 93 93 21 24 94 22 104 30 82 81 460 Overloaded Moves 444 | . . . . . . . . . . . . . . . . . . . . . 1 . . 10 . 20 12 . 6 91 304 . . Propulsion Burnouts . | . . . . . . . . . . . . . . . . . . . . . . . . . . . . . . . . . . Robots Hopped 119 | . . . . . . . . . . . . . . . . . . . . 1 30 . 1 3 . 18 11 . 5 7 15 28 . Potential Cave-ins 10 | . . . . . . . . . . . . . . . . . . . 4 . . . . . . . . . . 2 4 . . Cave-ins Triggered . | . . . . . . . . . . . . . . . . . . . . . . . . . . . . . . . . . . Teleports 3 | . . . . . . . . . . . . . . . . . . . . . . . . . . . . . . 1 1 1 . Exploration Rate (%) 69 | 4 96 96 91 98 84 98 19 94 98 89 28 96 32 85 58 78 14 75 20 85 59 89 92 92 67 36 52 91 63 90 41 59 89 Regions Visited 33 Branch Regions 20 Pre-discovered Areas 22 | . 2 1 5 . . . . 2 8 . . . . . . . . . . . 1 2 1 . . . . . . . . . . Known Exits Taken 21 | . . . 1 . . 1 1 . 1 1 . . 1 1 1 1 1 . . . 1 1 1 . 1 1 1 1 1 1 1 1 . Unknown Exits Taken 7 | 1 1 1 . 1 1 . . 1 . . . . . . . . . . . . . . . 1 . . . . . . . . . Scrap Searched 21 | . . 1 . 2 . 1 . . . 9 . . . . . . . . . . . 4 4 . . . . . . . . . . Spaces Dug 214 | . . . . . . . . . . 4 21 . 13 . . . 1 1 27 . 20 11 6 . 3 25 14 . 22 17 9 11 9 Terrain Destroyed 1181 | . 6 39 130 1 . 29 24 22 . 4 72 . 16 4 . 2 18 3 70 1 72 27 26 . 3 190 42 . 105 20 127 67 61 Melee 93 | . . . . . . . . . . 1 17 . 12 . . . . 1 1 . 13 . . . . 8 14 . 18 4 2 2 . Projectile 515 | . . . 4 1 . 1 7 22 . 3 11 . 4 4 . 2 18 2 68 1 43 27 26 . 3 85 20 . 61 16 41 31 14 AOE 523 | . 6 39 126 . . 28 17 . . . 43 . . . . . . . . . 16 . . . . 96 8 . 26 . 84 34 . Terrain Rammed . | . . . . . . . . . . . . . . . . . . . . . . . . . . . . . . . . . . Walls Destroyed . | . . . . . . . . . . . . . . . . . . . . . . . . . . . . . . . . . . Machines Disabled . | . . . . . . . . . . . . . . . . . . . . . . . . . . . . . . . . . . Actions | -11 -10 -10 -9 -9 -9 -8 -8 -8 -8 -8 -6 -6 -6 -6 -6 -6 -6 -6 -5 -5 -5 -5 -5 -5 -4 -4 -4 -4 -3 -3 -3 -2 -2 --------- Run | Yrd Mat Min Mat Min Exi Min Mat Sto Rec Scr Fac Was Fac Ext Cet Arc Hub Gar Fac Was Fac Upp Upp War Pro Fac Arm Lab Res Qua Frg Res Tes Total 45408 | 65 907 678 1482 723 393 560 224 1060 1018 3645 1929 310 1580 1661 370 162 242 897 1041 252 3539 1496 1411 2142 575 1918 1747 493 4075 1358 3486 2147 1822 Wait 7836 | . 72 23 80 106 . 16 30 102 186 762 231 52 183 614 170 59 59 101 119 22 741 423 425 787 85 246 268 248 414 25 611 144 432 Move 33600 | 51 766 609 1198 605 393 514 139 731 659 2752 1499 243 1325 795 177 91 143 638 805 204 2573 998 939 1299 487 1510 1374 211 3460 1258 2374 1802 978 Hop 94 | . . . . . . . . . . . . . . . . . . . . 1 24 . 1 1 . 14 7 . 5 6 13 22 . Pick Up 272 | 5 9 7 20 1 . 1 3 25 5 25 9 1 5 3 3 . . 2 11 3 12 . . 8 . 5 7 9 14 7 43 14 15 Fast Attach 300 | 7 . 1 9 1 . . 1 17 4 19 9 2 9 7 3 3 10 3 7 . 17 7 . 2 . 8 14 3 31 4 45 23 34 Attach 164 | . 1 2 5 . . 1 3 7 1 4 14 . 4 . 1 . . 1 12 1 3 . . 5 . 7 4 2 4 2 39 16 25 Detach 80 | . 1 . . . . . . . 1 3 5 . . 1 . . 1 . . . 1 . . 3 . 3 2 1 1 1 26 10 20 Swap 309 | . 17 9 29 4 . 5 8 14 7 5 12 1 9 . 2 . 2 3 10 4 21 6 10 10 . 14 2 7 9 7 33 . 49 Drop 453 | . 3 8 36 3 . 1 2 31 10 41 22 3 14 9 6 2 8 4 20 5 26 7 . 8 . 11 18 9 47 9 46 11 33 Fire 1319 | 2 38 19 105 3 . 22 38 106 22 5 59 4 12 17 7 7 19 58 52 12 45 27 30 18 3 77 31 . 56 20 164 41 200 Melee 354 | . . . . . . . . 1 1 28 38 4 19 14 1 . . 1 1 . 49 2 4 . . 21 20 3 34 19 67 22 5 Ram 1 | . . . . . . . . . . 1 . . . . . . . . . . . . . . . . . . . . . . . Kick . | . . . . . . . . . . . . . . . . . . . . . . . . . . . . . . . . . . Crush 1 | . . . . . . . . 1 . . . . . . . . . . . . . . . . . . . . . . . . . Escape Stasis 180 | . . . . . . . . 8 . . 31 . . 37 . . . 3 4 . 24 . . . . . . . . . 25 42 6 Rewire 420 | . . . . . . . . . 122 . . . . 164 . . . 83 . . . 25 . 1 . . . . . . . . 25 Trap 25 | . . . . . . . . 17 . . . . . . . . . . . . 3 1 2 . . 2 . . . . . . . Miscellaneous . | . . . . . . . . . . . . . . . . . . . . . . . . . . . . . . . . . . Route ------- -11/Scrapyard -10/Materials (discovered 5 exits: *Mat x3 / [*Min] / [*Sub]) -10/Mines (discovered 2 exits: *Mat x2) -9/Materials (discovered 5 exits: *Mat x3 / *Min x2) -9/Mines (discovered 3 exits: *Mat x2 / *Exi) -9/Exiles -8/Mines (discovered 2 exits: *Mat x2) -8/Materials (discovered 4 exits: Fac x3 / *Sto) -8/Storage (discovered 2 exits: *Fac / *Rec) -8/Recycling (discovered 2 exits: *Fac / *Scr) -8/Scraptown (discovered 2 exits: *Fac x2) -6/Factory (discovered 2 exits: Fac / *Low) -6/Waste -6/Factory (discovered 4 exits: *Low x2 / *Ext x2) -6/Extension (discovered 2 exits: *Fac / *Cet) -6/Cetus (discovered 2 exits: *Fac / *Arc) -6/Archives (discovered 2 exits: *Fac / *Hub) -6/Hub_04(d) -6/Garrison (discovered 3 exits: *Fac x3) -5/Factory (discovered 2 exits: *Fac x2) -5/Waste -5/Factory (discovered 3 exits: *Fac / *Upp x2) -5/Upper Caves -5/Upper Caves (discovered 2 exits: *Fac / *War) -5/Warlord -4/Proximity Caves -4/Factory (discovered 4 exits: *Res / [Upp x2] / *Arm) -4/Armory (discovered 2 exits: Res / *Lab) -4/Lab -3/Research (discovered 4 exits: *Res x2 / *Qua x2) -3/Quarantine (discovered 3 exits: *Res / *Sec / *Frg) -3/Protoforge -2/Research -2/Testing (discovered 1 exit: [*Acc]) History --------- Turn | Location | Event 31 | -11/Scrapyard | Discovered new exit (range 16) 68 | -11/Scrapyard | Entered Materials 185 | -10/Materials | Discovered new exit (range 12) 306 | -10/Materials | Build established: Mutant 444 | -10/Materials | Discovered new exit (range 14) 732 | -10/Materials | Discovered new exit (range 7) 866 | -10/Materials | Discovered new exit (range 11) 995 | -10/Materials | Discovered new exit (range 13) 1174 | -10/Materials | Entered Mines 1177 | -10/Mines | Joined a pair of Derelicts in attacking an 0b10 outpost 1260 | -10/Mines | Found a damaged Exp. Sensor Array with a note attached 1263 | -10/Mines | Found Prototype Device 1267 | -10/Mines | Assembled infested the area 1380 | -10/Mines | Received a Rocket Launcher from a helpful Derelict 1421 | -10/Mines | Learned location of 1 exit from Materials 1560 | -10/Mines | Discovered new exit (range 12) 1809 | -10/Mines | Learned location of Zion (-6) 1863 | -10/Mines | Discovered new exit (range 10) 1953 | -10/Mines | Core integrity fell below 50% 2035 | -10/Mines | Entered Materials 2035 | -9/Materials | Evolved 2 slots: Utility x1, Weapon x1 2036 | -9/Materials | Identified exit to Materials 2405 | -9/Materials | Discovered new exit (range 7) 2910 | -9/Materials | Build established: Tank 3064 | -9/Materials | Identified Exp. Sensor Array 3227 | -9/Materials | Discovered new exit (range 14) 3350 | -9/Materials | Discovered exit to Materials (range 8) 3591 | -9/Materials | Loaded intel: 39 non-interactive machine locations 3636 | -9/Materials | Identified exit to Mines 3727 | -9/Materials | Learned 4 Recycling zone layouts 3728 | -9/Materials | Learned 4 Recycling zone layouts 3737 | -9/Materials | Learned location of 2 exits from Materials 3758 | -9/Materials | Learned location of 2 exits from Materials 4035 | -9/Materials | First assault squad dispatched 4075 | -9/Materials | Entered Mines 4202 | -9/Mines | Learned Materials security intel 4323 | -9/Mines | Met a Derelict shopkeep closing up shop 4710 | -9/Mines | Discovered exit to Materials (range 14) 4878 | -9/Mines | Found a Scrap Suit stashed away for nefarious purposes 4950 | -9/Mines | Deemed a non-threat by the Exiles lab entrance 4950 | -9/Mines | Discovered new exit (range 5) 4955 | -9/Mines | Entered Exiles 4955 | -9/Exiles | Found Exiles lab abandoned 5432 | -9/Exiles | Discovered new exit (range 14) 5447 | -9/Exiles | Entered Mines 5645 | -8/Mines | Discovered exit to Materials (range 5) 5980 | -8/Mines | Discovered exit to Materials (range 13) 6304 | -8/Mines | Entered Materials 6304 | -8/Materials | Evolved 2 slots: Propulsion x1, Utility x1 6305 | -8/Materials | Identified exit to Factory 6305 | -8/Materials | Identified exit to Storage 6669 | -8/Materials | Garrison activated, responded to threat 6697 | -8/Materials | Entered Storage 7305 | -8/Storage | Used back door to open Recycling access 7305 | -8/Storage | Discovered new exit (range 5) 7947 | -8/Storage | Discovered exit to Factory (range 15) 8055 | -8/Storage | Build established: Scavenger-Tank 8351 | -8/Storage | Met a pair of Derelict thieves 8493 | -8/Storage | Entered Recycling 8493 | -8/Recycling | Accompanied by 2 allies 8494 | -8/Recycling | Identified exit to Factory 8494 | -8/Recycling | Identified exit to Scraptown 8573 | -8/Recycling | Build established: Tank 9478 | -8/Recycling | Build established: Commander-Tank 9774 | -8/Recycling | Learned location of 1 exit from Recycling 9829 | -8/Recycling | Learned Factory security intel 9857 | -8/Recycling | Scanned before Scraplab entrance 9884 | -8/Recycling | Entered Scraplab 9904 | -8/Recycling | Learned location of 1 exit from Storage 9937 | -8/Recycling | Learned location of Lower Caves (-6) 9995 | -8/Recycling | Learned Factory terminal intel 10000 | -8/Recycling | Entered Scraptown 10000 | -8/Scraptown | Accompanied by 18 allies 10000 | -8/Scraptown | System corruption cleaned by C-Scrubber 10166 | -8/Scraptown | Build established: Commander-Mutant 10321 | -8/Scraptown | Visited Bundlers 10407 | -8/Scraptown | Visited Assassins FH 10437 | -8/Scraptown | Visited Red Mages 10711 | -8/Scraptown | Visited Junk Repository 10780 | -8/Scraptown | Visited Comm Corps 10863 | -8/Scraptown | Visited IN-MT5's Study 10933 | -8/Scraptown | Visited UFD Registry 10933 | -8/Scraptown | Registered with UFD as "Autosys" 10973 | -8/Scraptown | Visited Abandonware Association 10993 | -8/Scraptown | Learned abandonware demo "OVRCLOCK.EXE" 10996 | -8/Scraptown | Learned abandonware demo "TRNCOAT.EXE" 10996 | -8/Scraptown | Learned abandonware demo "REBOOT5.EXE" 11033 | -8/Scraptown | Visited Scrap Suit Storage 11055 | -8/Scraptown | Visited Science Guys 11103 | -8/Scraptown | Visited Research Penetration Think Tank 11137 | -8/Scraptown | Visited Supply Room 11161 | -8/Scraptown | Visited A0-MCA Data Center 11170 | -8/Scraptown | Given a B rating by A0-MCA 11179 | -8/Scraptown | Found A0-MCA's Component Scanner 11201 | -8/Scraptown | Visited Curators Association 11251 | -8/Scraptown | Visited Scrapoid Pod Storage 11280 | -8/Scraptown | Visited DA-N13 Charitable Foundation 11294 | -8/Scraptown | Found DCF Scrap (30 items) 11328 | -8/Scraptown | Visited Derelict Rescue Squad 12575 | -8/Scraptown | Found Scrapoid Pod 12748 | -8/Scraptown | Scrapoid Pod released 08S05-D (x5) 13057 | -8/Scraptown | Attached CPS modules to 08S04-D 13062 | -8/Scraptown | Attached CPS modules to 08S02-D 13179 | -8/Scraptown | Found DRS Beacon 13481 | -8/Scraptown | Attached CPS modules to 08S02-D 13483 | -8/Scraptown | Attached CPS modules to 08S04-D 13548 | -8/Scraptown | Murdered 5 allies 14016 | -8/Scraptown | Met Optimus 14016 | -8/Scraptown | Accepted into 0bPrime 14416 | -8/Scraptown | Civil war broke out across Scraptown 14421 | -8/Scraptown | Found Master Drone Bay 14470 | -8/Scraptown | Core integrity fell below 50% 14504 | -8/Scraptown | Found DM-GVY's Chainsaw 14535 | -8/Scraptown | Entered Factory 14535 | -6/Factory | Evolved 4 slots: Propulsion x2, Utility x2 14536 | -6/Factory | Identified exit to Factory 14538 | -6/Factory | Loaded intel: 26 terminal locations 14556 | -6/Factory | Lost 21 allies 14686 | -6/Factory | Tech Extrapolator generated special schematic: Deep Structural Scanner 14806 | -6/Factory | Build established: Mutant 14900 | -6/Factory | Loaded intel: 8 recycling unit locations 14921 | -6/Factory | Spotted B-75 Beast 14927 | -6/Factory | Master Drone dominated B-75 Beast 15350 | -6/Factory | Scrapoids reinforcements arrived? 15397 | -6/Factory | Garrison activated, responded to threat 15435 | -6/Factory | Lost 5 allies 15493 | -6/Factory | Master Drone dominated H-66 Slayer 15502 | -6/Factory | Master Drone dominated H-66 Slayer 15505 | -6/Factory | Master Drone dominated H-66 Slayer 15541 | -6/Factory | Lost 4 allies 15585 | -6/Factory | First assault squad dispatched 15641 | -6/Factory | Discovered new exit (range 15) 15647 | -6/Factory | Identified exit to Lower Caves 15687 | -6/Factory | Manually triggered Chute Trap 15687 | -6/Factory | Sucked down chute 15687 | -6/Factory | Entered Waste 15688 | -6/Waste | Joined by Warlord forces that had cleared the area 15760 | -6/Waste | Discovered new exit (range 12) 15809 | -6/Waste | Identified exit to Factory 15862 | -6/Waste | Entered Factory 15862 | -6/Factory | Accompanied by 19 allies 15981 | -6/Factory | Repaired Broken Ovr. Coil Gun? 16015 | -6/Factory | Discovered exit to Lower Caves (range 3) 16026 | -6/Factory | Identified exit to Extension 16111 | -6/Factory | Lost 3 allies 16412 | -6/Factory | Watched by a mysterious "MATRIX" hacker 16434 | -6/Factory | Fabricated Cld. VTOL Module (x1) 16458 | -6/Factory | Fabricated Cld. VTOL Module (x1) 16699 | -6/Factory | Entered Extension 16699 | -6/Extension | Accompanied by 5 allies 16729 | -6/Extension | Rescued a captive Derelict 16730 | -6/Extension | Rescued a captive Derelict 16747 | -6/Extension | Rescued a captive Derelict 16747 | -6/Extension | Rescued a captive Derelict 16754 | -6/Extension | Rescued A7 16771 | -6/Extension | Rescued a captive Derelict 16876 | -6/Extension | Rescued a captive Derelict 16877 | -6/Extension | Rescued a captive Derelict 16969 | -6/Extension | Repaired Gravmag Array+ 16990 | -6/Extension | Rescued a captive Derelict 16991 | -6/Extension | Rescued a captive Derelict 17013 | -6/Extension | Rescued a captive Derelict 17016 | -6/Extension | Rescued a captive Derelict 17171 | -6/Extension | Build established: Commander-Mutant 17321 | -6/Extension | Spotted B-75 Beast 17335 | -6/Extension | Destroyed B-75 Beast 17357 | -6/Extension | Extracted ID and sensor layout for unrecognized location from A7's data core 17357 | -6/Extension | Spotted B-75 Beast 17367 | -6/Extension | Destroyed B-75 Beast 17398 | -6/Extension | Lost 5 allies 17399 | -6/Extension | First assault squad dispatched 17412 | -6/Extension | Rescued a captive Derelict 17558 | -6/Extension | Rescued a captive Derelict 17736 | -6/Extension | Rescued a captive Derelict 17737 | -6/Extension | Rescued a captive Derelict 17745 | -6/Extension | Rescued a captive Derelict 17747 | -6/Extension | Rescued a captive Derelict 17753 | -6/Extension | Lost 5 allies 17791 | -6/Extension | Discovered exit to Factory (range 10) 17792 | -6/Extension | Discovered new exit (range 6) 17802 | -6/Extension | Identified exit to Cetus 17939 | -6/Extension | Entered Cetus 17939 | -6/Cetus | Accompanied by 22 allies 17962 | -6/Cetus | Spotted Cetus Guard 17965 | -6/Cetus | Spotted Cetus Guard 17967 | -6/Cetus | Spotted Cetus Guard 17969 | -6/Cetus | Spotted Cetus Guard 17976 | -6/Cetus | Allies destroyed Cetus Guard 17982 | -6/Cetus | Allies destroyed Cetus Guard 17990 | -6/Cetus | Allies destroyed Cetus Guard 17992 | -6/Cetus | Allies destroyed Cetus Guard 18019 | -6/Cetus | Lost 12 allies 18030 | -6/Cetus | Discovered new exit (range 15) 18121 | -6/Cetus | Spotted Cetus Guard 18126 | -6/Cetus | Allies destroyed Cetus Guard 18131 | -6/Cetus | Discovered exit to Factory (range 16) 18134 | -6/Cetus | Met Revision 17 18166 | -6/Cetus | Identified exit to Archives 18210 | -6/Cetus | Entered Archives 18210 | -6/Archives | Accompanied by 9 allies 18296 | -6/Archives | Discovered new exit (range 15) 18300 | -6/Archives | Discovered exit to Factory (range 15) 18310 | -6/Archives | Identified exit to Hub_04(d) 18333 | -6/Archives | Entered Hub_04(d) 18333 | -6/Hub_04(d) | Accompanied by 7 allies 18354 | -6/Hub_04(d) | Network Hub disabled 18354 | -6/Hub_04(d) | Network Hub disabled 18362 | -6/Hub_04(d) | Spotted Lightning 18362 | -6/Hub_04(d) | Spotted Lightning 18363 | -6/Hub_04(d) | Spotted Lightning 18376 | -6/Hub_04(d) | Allies destroyed Lightning 18383 | -6/Hub_04(d) | Garrison activated, responded to threat 18407 | -6/Hub_04(d) | Destroyed Lightning 18428 | -6/Hub_04(d) | Master Drone dominated L-41 Fighter 18436 | -6/Hub_04(d) | Lost 5 allies 18451 | -6/Hub_04(d) | Allies destroyed Lightning 18455 | -6/Hub_04(d) | Found Prototype Processor 18455 | -6/Hub_04(d) | Identified Exp. Targeting Computer 18461 | -6/Hub_04(d) | Found Prototype Device 18461 | -6/Hub_04(d) | Identified Exp. EM Shield 18506 | -6/Hub_04(d) | Master Drone dominated L-41 Fighter 18523 | -6/Hub_04(d) | Master Drone dominated B-48 Gladiator 18543 | -6/Hub_04(d) | Master Drone dominated G-50 Soldier 18546 | -6/Hub_04(d) | Master Drone dominated G-50 Soldier 18547 | -6/Hub_04(d) | Build established: Scavenger-Gunner 18571 | -6/Hub_04(d) | Identified exit to Garrison 18572 | -6/Hub_04(d) | Entered Garrison 18572 | -6/Garrison | Accompanied by 2 allies 18576 | -6/Garrison | Lost 4 allies 18610 | -6/Garrison | Triggered checkpoint 18629 | -6/Garrison | Master Drone dominated C-17 Slicer 18660 | -6/Garrison | Lost 3 allies 18706 | -6/Garrison | Destroyed 13 combat bots 18716 | -6/Garrison | Triggered checkpoint 18773 | -6/Garrison | Garrison Relay disabled 18917 | -6/Garrison | Discovered exit to Factory (range 15) 18983 | -6/Garrison | Build established: Scavenger-Tank 19050 | -6/Garrison | Learned Factory security intel 19078 | -6/Garrison | Discovered exit to Factory (range 58) 19078 | -6/Garrison | Discovered exit to Factory (range 50) 19078 | -6/Garrison | Discovered exit to Factory (range 36) 19135 | -6/Garrison | Triggered checkpoint 19195 | -6/Garrison | Attempted to access garrison exit controls, blocked by remote lockdown 19244 | -6/Garrison | Triggered checkpoint 19410 | -6/Garrison | Attempted to access garrison exit controls, blocked by remote lockdown 19442 | -6/Garrison | Triggered checkpoint 19666 | -6/Garrison | Entered Factory 19666 | -5/Factory | Accompanied by 6 allies 19666 | -5/Factory | Evolved 2 slots: Propulsion x2 19763 | -5/Factory | Fabricated Impulse Thruster (x2) 19764 | -5/Factory | Tech Extrapolator generated special schematic: Energy Deflector 19855 | -5/Factory | Fabricated M-13 Machinist? 19946 | -5/Factory | Tech Extrapolator generated special schematic: Machine Rigger 20053 | -5/Factory | Build established: Scavenger-Skirmisher 20065 | -5/Factory | Fabricated Impulse Thruster (x2) 20162 | -5/Factory | Lost 3 allies 20195 | -5/Factory | Discovered new exit (range 8) 20203 | -5/Factory | Identified exit to Factory 20614 | -5/Factory | Discovered exit to Factory (range 16) 20807 | -5/Factory | Scrapoids reinforcements arrived? 20869 | -5/Factory | Sucked down chute 20869 | -5/Factory | Entered Waste 20869 | -5/Waste | Met up with 1 ally sucked down the chute earlier 20877 | -5/Waste | Spotted C-40 Crusher 20878 | -5/Waste | Spotted C-40 Crusher 20883 | -5/Waste | Allies destroyed C-40 Crusher 20884 | -5/Waste | EMP discharged 20897 | -5/Waste | Spotted C-40 Crusher 20898 | -5/Waste | Spotted C-40 Crusher 20899 | -5/Waste | 4 allies followed down the chute 20899 | -5/Waste | Allies destroyed C-40 Crusher 20903 | -5/Waste | Allies destroyed C-40 Crusher 20913 | -5/Waste | Allies destroyed C-40 Crusher 20918 | -5/Waste | Found Scrap Suit 20922 | -5/Waste | Destroyed C-40 Crusher 20944 | -5/Waste | Spotted C-40 Crusher 20950 | -5/Waste | Destroyed C-40 Crusher 20956 | -5/Waste | Discovered new exit (range 13) 20961 | -5/Waste | Identified exit to Factory 20978 | -5/Waste | Entered Factory 20978 | -5/Factory | Accompanied by 3 allies 21129 | -5/Factory | Build established: Scavenger-Sprinter 21288 | -5/Factory | Spotted B-75 Beast 21379 | -5/Factory | Scrapoid reinforcements arrived 21549 | -5/Factory | Found Scrap Suit 21557 | -5/Factory | Lost 5 allies 21653 | -5/Factory | System corruption reached 10% 21901 | -5/Factory | Fabricated Deep Structural Scanner (x1) 21915 | -5/Factory | Identified exit to Upper Caves 21915 | -5/Factory | Loaded intel: 7 recycling unit locations 21915 | -5/Factory | Learned location of Protoforge (-3) 21931 | -5/Factory | Scrapoids reinforcements arrived? 22005 | -5/Factory | Lost 5 allies 22119 | -5/Factory | Scrapoids reinforcements arrived? 22209 | -5/Factory | Discovered exit to Factory (range 14) 22211 | -5/Factory | Lost 4 allies 22422 | -5/Factory | High security lockdown imminent 22502 | -5/Factory | High security lockdown engaged 22554 | -5/Factory | Fabricated Exp. Sensor Array (x1) 22560 | -5/Factory | Entered Upper Caves 23187 | -5/Upper Caves | Discovered new exit (range 6) 23223 | -5/Upper Caves | Identified exit to Upper Caves 23282 | -5/Upper Caves | Entered another Upper Caves area 23282 | -5/Upper Caves | Accompanied by 2 allies 23325 | -5/Upper Caves | Discovered exit to Factory (range 10) 23424 | -5/Upper Caves | Spotted B-75 Beast 23425 | -5/Upper Caves | Encountered a Warlord checkpoint 23479 | -5/Upper Caves | Destroyed B-75 Beast 23484 | -5/Upper Caves | Learned location of Warlord (-5) 23507 | -5/Upper Caves | Lost 4 allies 23915 | -5/Upper Caves | Build established: Scavenger-Mutant 24215 | -5/Upper Caves | Discovered new exit (range 7) 24220 | -5/Upper Caves | Identified exit to Warlord 24228 | -5/Upper Caves | Entered Warlord 24237 | -5/Warlord | System corruption cleaned by Quarantine Array 24309 | -5/Warlord | Received a Watcher feed algorithm from an ecstatic Tinkerer 24330 | -5/Warlord | Found Exp. Core Analyzer 24399 | -5/Warlord | Visited the Vortex Lab 24402 | -5/Warlord | Met EX-DEC 24413 | -5/Warlord | Warlord's base attacked by MAIN.C 24446 | -5/Warlord | Rebuked by Warlord 24617 | -5/Warlord | Build established: Machinist-Sprinter 24763 | -5/Warlord | Warlord forces counterattacked 24812 | -5/Warlord | Spotted Executioner 24844 | -5/Warlord | Spotted Striker 24851 | -5/Warlord | Spotted Striker 24851 | -5/Warlord | Attached CPS modules to Striker 24857 | -5/Warlord | Attached CPS modules to Striker 24863 | -5/Warlord | P-70 Sage assimilated allied 5Q-3WQ(g) 24878 | -5/Warlord | Spotted Executioner 24878 | -5/Warlord | P-80 Master assimilated allied U6-35P(M) 24897 | -5/Warlord | P-80 Master assimilated allied ZW-3PL(Y) 24941 | -5/Warlord | Lost 31 allies 25062 | -5/Warlord | Lost 5 allies 25069 | -5/Warlord | Spotted Executioner 25088 | -5/Warlord | Warlord base infiltrated, sounded retreat 25093 | -5/Warlord | Spotted Executioner 25111 | -5/Warlord | Found Thermal Barrier 25113 | -5/Warlord | Found Ghost Barrier 25126 | -5/Warlord | Lost 4 allies 25211 | -5/Warlord | Lost 3 allies 25214 | -5/Warlord | Spotted Striker 25218 | -5/Warlord | Spotted Striker 25249 | -5/Warlord | Spotted B-75 Beast 25254 | -5/Warlord | Spotted B-86 Titan 25260 | -5/Warlord | Found Meganuke 25287 | -5/Warlord | Lost 14 allies 25292 | -5/Warlord | Discovered new exit (range 14) 25317 | -5/Warlord | P-80 Master assimilated allied 79-3WI(Y) 25318 | -5/Warlord | Spotted B-75 Beast 25318 | -5/Warlord | Spotted B-86 Titan 25331 | -5/Warlord | P-70 Sage assimilated allied LF-EFF(M) 25333 | -5/Warlord | Entered Proximity Caves 25333 | -4/Proximity Caves | Learned Research trap positions 25361 | -4/Proximity Caves | Lost 8 allies 25510 | -4/Proximity Caves | Build established: Scavenger-Sprinter 25518 | -4/Proximity Caves | Spotted B-86 Titan 25523 | -4/Proximity Caves | Discovered exit to Factory (range 2) 25525 | -4/Proximity Caves | Entered Factory 25525 | -4/Factory | Evolved 2 slots: Power x1, Utility x1 25526 | -4/Factory | Identified exit to Armory 25544 | -4/Factory | Targeted by mysterious "MATRIX" hacker 25577 | -4/Factory | Discovered new exit (range 17) 25589 | -4/Factory | Loaded intel: 8 recycling unit locations 25610 | -4/Factory | Spotted B-86 Titan 25765 | -4/Factory | Central database locked down 25798 | -4/Factory | Discovered new exit (range 13) 25937 | -4/Factory | Discovered new exit (range 9) 25942 | -4/Factory | Identified exit to Research 26014 | -4/Factory | Build established: Scavenger-Scout 26025 | -4/Factory | First assault squad dispatched 26040 | -4/Factory | Scrapoid reinforcements arrived 26067 | -4/Factory | Garrison activated, responded to threat 26089 | -4/Factory | Found Scrap Suit 26094 | -4/Factory | Lost 4 allies 26233 | -4/Factory | Fabricated Cld. VTOL Module? 26372 | -4/Factory | Build established: Scavenger-Sprinter 26373 | -4/Factory | Entered Armory 26651 | -4/Armory | Fabricated Deep Structural Scanner? 26666 | -4/Armory | Discovered new exit (range 18) 26678 | -4/Armory | Assisted by bots powering up and referring to "LRC-V3" 26717 | -4/Armory | Discovered exit to Research (range 10) 26730 | -4/Armory | Lost 6 allies 26753 | -4/Armory | Scrapoids reinforcements arrived? 26790 | -4/Armory | Found Scrap Suit 26814 | -4/Armory | Lost 8 allies 26854 | -4/Armory | Fabricated Ovr. Coil Gun? 26974 | -4/Armory | Scrapoids reinforcements arrived? 27026 | -4/Armory | Found Scrap Suit 27047 | -4/Armory | Lost 5 allies 27051 | -4/Armory | Identified exit to Lab 27165 | -4/Armory | Entered Lab 27165 | -4/Lab | Discovered exit to Research (range 9) 27173 | -4/Lab | Hidden lab's door opened automatically 27173 | -4/Lab | Sensor layout match revealed 27174 | -4/Lab | Gained access to the hidden lab's interior 27323 | -4/Lab | Found Alien Artifact 27323 | -4/Lab | Identified Integrated Mediator 27323 | -4/Lab | Installed Integrated Mediator, increased core attachment efficiency 27329 | -4/Lab | Found Alien Artifact 27334 | -4/Lab | Found Alien Artifact 27409 | -4/Lab | Found Prototype Protection 27409 | -4/Lab | Identified Exp. Powered Armor 27411 | -4/Lab | Found Prototype Hackware 27413 | -4/Lab | Found Prototype Energy Gun 27414 | -4/Lab | Found Prototype Energy Gun 27474 | -4/Lab | Identified Tachyon Dispersion Ray 27476 | -4/Lab | Identified Hyp. EM Gauss Rifle 27478 | -4/Lab | Identified Core Regenerator 27478 | -4/Lab | Used Core Regenerator, restored core integrity (+100) 27490 | -4/Lab | Identified Quantum Router 27496 | -4/Lab | Entered Research 27496 | -3/Research | Evolved 2 slots: Propulsion x1, Utility x1 27497 | -3/Research | Loaded intel: 69 trap records 27504 | -3/Research | Identified Transdimensional Reconstructor 27530 | -3/Research | Loaded intel: 5 recycling unit locations 27632 | -3/Research | Found Fusion Bomb Launcher 27696 | -3/Research | Revision forces began assault on 0b10 27706 | -3/Research | Central database locked down 27731 | -3/Research | Scrapoids reinforcements arrived? 27803 | -3/Research | Met up with Revision 17++ 27804 | -3/Research | Build established: Scavenger-Scout 27887 | -3/Research | Identified exit to Quarantine 27921 | -3/Research | Found Scrap Suit 27929 | -3/Research | P-80 Master assimilated allied 03R49-D 28076 | -3/Research | Found Prototype Launcher 28076 | -3/Research | Identified Hellfire Missile Launcher 28196 | -3/Research | Research terminal network offline 28365 | -3/Research | Discovered new exit (range 15) 28372 | -3/Research | Identified exit to Research 28418 | -3/Research | Discovered exit to Research (range 15) 28482 | -3/Research | Scraphulk reinforcements arrived? 28504 | -3/Research | Attached CPS modules to 03R01-K 28525 | -3/Research | Spotted B-86 Titan 28771 | -3/Research | Spotted Striker 29065 | -3/Research | Found Prototype Processor 29065 | -3/Research | Identified Exp. Signal Interpreter 29084 | -3/Research | Found Quantum Capacitor 29139 | -3/Research | Spotted B-86 Titan 29161 | -3/Research | Entered Quarantine 29405 | -3/Quarantine | Discovered exit to Research (range 18) 29411 | -3/Quarantine | First assault squad dispatched 29443 | -3/Quarantine | Found Alien Artifact 29493 | -3/Quarantine | Found Alien Slashing Weapon 29493 | -3/Quarantine | Identified Sigix Broadsword 29562 | -3/Quarantine | Found Alien Artifact 29562 | -3/Quarantine | Identified Dimensional Node Initializer 29562 | -3/Quarantine | Initialized slip node 29565 | -3/Quarantine | Warped through subspace to slip node 29573 | -3/Quarantine | Found Transdimensional Reconstructor 29576 | -3/Quarantine | Found Dimensional Node Initializer 29645 | -3/Quarantine | Spotted Fortress 29661 | -3/Quarantine | Search patrols dispatched 29665 | -3/Quarantine | Discovered new exit (range 5) 29665 | -3/Quarantine | Discovered new exit (range 6) 29667 | -3/Quarantine | Identified exit to Protoforge 29667 | -3/Quarantine | Identified exit to Section 7 29670 | -3/Quarantine | Entered Protoforge 29686 | -3/Protoforge | Spotted Hotshot 29701 | -3/Protoforge | Superfortress began startup sequence 29708 | -3/Protoforge | Spotted Hotshot 29734 | -3/Protoforge | Build established: Sprinter 29767 | -3/Protoforge | Spotted Hotshot 29768 | -3/Protoforge | Destroyed Hotshot 29980 | -3/Protoforge | Spotted Hotshot 30082 | -3/Protoforge | Build established: Scavenger-Sprinter 30125 | -3/Protoforge | Forge Plexus network access discovered 30146 | -3/Protoforge | Discovered exit to Research (range 10) 30152 | -3/Protoforge | Initialized slip node 30163 | -3/Protoforge | Spotted B-86 Titan 30166 | -3/Protoforge | Spotted Hotshot 30166 | -3/Protoforge | Spotted Hotshot 30238 | -3/Protoforge | Destroyed 8 combat bots 30252 | -3/Protoforge | Found Crosscalibrator 30320 | -3/Protoforge | Spotted Immortal 30323 | -3/Protoforge | Spotted Immortal 30368 | -3/Protoforge | Spotted Decapitator 30368 | -3/Protoforge | Spotted Decapitator 30368 | -3/Protoforge | Spotted Decapitator 30368 | -3/Protoforge | Spotted Decapitator 30420 | -3/Protoforge | First assault squad dispatched 30442 | -3/Protoforge | Found Exp. Terror Saw 30474 | -3/Protoforge | Destroyed Decapitator 30502 | -3/Protoforge | Destroyed Immortal 30584 | -3/Protoforge | Lost 3 parts (2u1w) 30726 | -3/Protoforge | Destroyed Hotshot 30756 | -3/Protoforge | Destroyed Hotshot 30766 | -3/Protoforge | Found Exp. Active Sensor Suite 30867 | -3/Protoforge | Destroyed Immortal 30879 | -3/Protoforge | Found Cep. Fieldthrust Drive 30885 | -3/Protoforge | Found Cep. Fieldthrust Drive 30899 | -3/Protoforge | Found Faulty Cep. Fieldthrust Drive 30935 | -3/Protoforge | Found Cep. Zero-point Core 31049 | -3/Protoforge | Found Cep. Antigrav Storage Unit 31055 | -3/Protoforge | Found Cep. NT7 Matterbank 31057 | -3/Protoforge | Found Cep. Matter Streamer 31065 | -3/Protoforge | Found Cep. Chromion Battery 31080 | -3/Protoforge | Spotted Immortal 31081 | -3/Protoforge | Spotted V607-i 31083 | -3/Protoforge | Spotted Immortal 31096 | -3/Protoforge | Spotted V791-w 31099 | -3/Protoforge | Core integrity fell below 50% 31106 | -3/Protoforge | Found Exp. Jetlance 31111 | -3/Protoforge | Found Cep. Plasma Driver 31114 | -3/Protoforge | Found Faulty Cep. Miniperforator 31116 | -3/Protoforge | Found Faulty Cep. Miniperforator 31118 | -3/Protoforge | System corruption reached 10% 31118 | -3/Protoforge | Found Cep. Lightning Penetrator 31148 | -3/Protoforge | Destroyed V791-w 31171 | -3/Protoforge | Lost 5 parts (2u3w) 31186 | -3/Protoforge | Destroyed 8 combat bots 31214 | -3/Protoforge | Destroyed Immortal 31244 | -3/Protoforge | Found Prototype Device 31244 | -3/Protoforge | Identified Cep. Antimissile System 31248 | -3/Protoforge | Found Exp. Melee Analysis Suite 31272 | -3/Protoforge | Found Faulty Cep. XC Strikerail 31274 | -3/Protoforge | Found Faulty Cep. XC Strikerail 31287 | -3/Protoforge | Found Cep. Plasma Driver 31292 | -3/Protoforge | Found Faulty Cep. Helical Railcannon 31320 | -3/Protoforge | Destroyed Immortal 31329 | -3/Protoforge | Found Faulty Cep. XC Strikerail 31330 | -3/Protoforge | Found Faulty Cep. XC Strikerail 31332 | -3/Protoforge | Found Cep. Deflector Sword 31334 | -3/Protoforge | Found Cep. Plasma Driver 31335 | -3/Protoforge | Found Exp. Jetlance 31360 | -3/Protoforge | Spotted Decapitator 31360 | -3/Protoforge | Spotted Decapitator 31363 | -3/Protoforge | Destroyed Decapitator 31366 | -3/Protoforge | Destroyed Decapitator 31382 | -3/Protoforge | Found Femtoactuators 31389 | -3/Protoforge | Found Prototype Device 31389 | -3/Protoforge | Identified Adv. Particle Accelerator 31398 | -3/Protoforge | Found Exp. Kinecellerator 31465 | -3/Protoforge | Build established: Sprinter 31476 | -3/Protoforge | Found Cep. Beam Splitter 31479 | -3/Protoforge | Found Cep. RG22 Armor 31484 | -3/Protoforge | Found Faulty Cep. Reaction Jets 31490 | -3/Protoforge | Found Faulty Cep. Phase Shift Module 31494 | -3/Protoforge | Spotted V908-u 31494 | -3/Protoforge | Spotted V137-b 31494 | -3/Protoforge | Spotted V603-o 31497 | -3/Protoforge | Found Faulty Cep. Reaction Jets 31543 | -3/Protoforge | Scanned by Researcher 31547 | -3/Protoforge | Spotted AP7-3 31547 | -3/Protoforge | Spotted AP7-3 31553 | -3/Protoforge | Found Cep. Core Analysis Suite 31555 | -3/Protoforge | Found Cep. Dimensional Manipulator 31557 | -3/Protoforge | Found Faulty Cep. Cloak Mesh 31559 | -3/Protoforge | Found Faulty Cep. Cloak Mesh 31568 | -3/Protoforge | Additional patrols dispatched to research labs 31573 | -3/Protoforge | Found Transdimensional Reconstructor 31573 | -3/Protoforge | Warped through subspace to slip node 31580 | -3/Protoforge | Entered Research 31580 | -2/Research | Evolved 2 slots: Utility x2 31649 | -2/Research | Scrapoids reinforcements arrived? 31743 | -2/Research | High security lockdown imminent 31800 | -2/Research | Spotted B-90 Cyclops 31823 | -2/Research | High security lockdown engaged 31842 | -2/Research | Lost 5 parts (1p2u2w) 31856 | -2/Research | Spotted B-90 Cyclops 31867 | -2/Research | Spotted B-90 Cyclops 31935 | -2/Research | Discovered new exit (range 10) 31949 | -2/Research | Lost 3 parts (3u) 32015 | -2/Research | Found Prototype Launcher 32064 | -2/Research | Lost 3 parts (1p1n1u) 32129 | -2/Research | System corruption reached 10% 32132 | -2/Research | Spotted Investigator 32137 | -2/Research | Core integrity fell below 50% 32138 | -2/Research | Identified exit to Testing 32140 | -2/Research | Identified Ragnarok Missile Launcher 32140 | -2/Research | Spotted Investigator 32148 | -2/Research | Warped through subspace 32177 | -2/Research | Lost 10 parts (2p3n5u) 32222 | -2/Research | Entered Testing 32238 | -2/Testing | Found Prototype Ballistic Gun 32238 | -2/Testing | Identified Hyp. Multirail 32251 | -2/Testing | Found Adv. Kinecellerator 32306 | -2/Testing | Rewired PX-9FN0DO5GNO 32472 | -2/Testing | First assault squad dispatched 32496 | -2/Testing | Build established: Mutant 32536 | -2/Testing | Discovered new exit (range 9) 32541 | -2/Testing | Identified Subatomic Replicator 32541 | -2/Testing | Used Subatomic Replicator to replicate Faulty Cep. Phase Shift Module 32549 | -2/Testing | Spotted PD-GTZDR6EUEN 32587 | -2/Testing | Protovariant out of control (PD-GTZDR6EUEN) 32587 | -2/Testing | Unleashed a protovariant (PD-GTZDR6EUEN) 32596 | -2/Testing | High security lockdown imminent 32676 | -2/Testing | High security lockdown engaged 32685 | -2/Testing | Found Prototype Launcher 32685 | -2/Testing | Identified Tesla Bomb Launcher 32738 | -2/Testing | Found Prototype Device 32738 | -2/Testing | Identified Exp. Transmission Jammer 32764 | -2/Testing | Found Prototype Protection 32769 | -2/Testing | Identified Hvy. Regenerative Plating 32812 | -2/Testing | Spotted Striker 32815 | -2/Testing | Spotted Striker 32820 | -2/Testing | Spotted Alpha 7 32824 | -2/Testing | Destroyed Striker 32829 | -2/Testing | Destroyed Striker 32842 | -2/Testing | Core integrity fell below 20% 32870 | -2/Testing | Destroyed Alpha 7 32885 | -2/Testing | Found Prototype Processor 32885 | -2/Testing | Identified Exp. Target Analyzer 33045 | -2/Testing | Destroyed 21 combat bots 33111 | -2/Testing | Build established: Scavenger-Mutant 33218 | -2/Testing | Destroyed 37 combat bots 33269 | -2/Testing | Spotted Striker 33270 | -2/Testing | Spotted Investigator 33276 | -2/Testing | Destroyed Striker 33281 | -2/Testing | Spotted Investigator 33284 | -2/Testing | Destroyed Investigator 33293 | -2/Testing | Destroyed Investigator 33298 | -2/Testing | Destroyed Striker 33302 | -2/Testing | Destroyed Executioner 33315 | -2/Testing | Destroyed Executioner 33342 | -2/Testing | Destroyed 26 combat bots 33469 | -2/Testing | Destroyed 14 combat bots 33517 | -2/Testing | Destroyed 7 combat bots 33526 | -2/Testing | Spotted Executioner 33530 | -2/Testing | Destroyed Executioner 33530 | -2/Testing | Spotted Executioner 33532 | -2/Testing | Destroyed Executioner 33535 | -2/Testing | Sterilization system engaged 33535 | -2/Testing | Non-combat units ordered to evacuate 33580 | -2/Testing | Destroyed Striker 33635 | -2/Testing | Combat units ordered to evacuate 33660 | -2/Testing | Destroyed 37 combat bots 33692 | -2/Testing | Found Exp. Core Analyzer 33703 | -2/Testing | Found Ragnarok Missile Launcher 33776 | -2/Testing | Core melted Last Messages --------------- 33727_ Identified Hvy. Proton Cannon. 33729_ Dropped Hvy. Proton Cannon. 33731_ Plasma Slug penetrates Wall. 33737_ System corrupted: Substantial component data lost. 33745_ Acquired Imp. Antigrav System. 33747_ Dropped Imp. Antigrav System. 33759_ System corrupted: Energy discharge (-40). 33761_ Acquired 8 matter. 33762_ Acquired 5 matter. 33762_ Acquired 14 matter. 33762_ Acquired 8 matter. 33766_ Acquired Cld. Linear Gravjet. 33773_ Thermocompressor Array malfunctions... 33773_ Thermocompressor Array explodes. 33774_ Overheating: Cld. Linear Gravjet damaged (-103). 33774_ Overheating: Exp. Target Analyzer damaged (-23). 33776_ Overheating: Core damaged (-232). Map ----- +----------------------------------------------------+ | ??????????????????????????????????????# """ "" | | ??????????????????????????????????????# | | ??????????????????????????????????????# """ """ "" | | ??????????????????????????????????????# """ """ "" | | ??????????????????????????????????????# """ """ "" | | ??????????????????????????????????????# | | ??????????????????????????????????????# | | ??????????????????????????????????????#######+#### | | ?????????????????????????????????????????# # | | ?????????????????????????????????????????# # | | ?????????????????????????????????????????# ! # | | ?????????????????????????????????????????# + | | ?????????????????????????????????????????# # | | ??????????????????#??????????????????????# # | | ?????????????????## ?????????????????????### ### | | ?############????# ???????????????????????# #?# | | ?#""G""# #?????T ??????????????????????# #?# | | ?# " " # #????## ##????????????????????# #?## | | ## " " # ######;;;;;##################### #### | | # ^ | | # ^ ^ | | # " " " " ^ | | # ^""""""""" ^ | | # ^" " " " ;#########/############# | | # ^ ; """"" # #???? | | # ^ @; ""T"" # ""#???? | | # [ ; #!!! ""#???? | | + ! ; ! #!! S"#???? | | # ; +!! """#???? | | # ; """ # """#???? | | # ###########+#;;;; ; """ # """#???? | | # ## ; ; """ # #???? | | + ## """"" """"" # # ##+########???? | | ######???"""" """"" # ########+## #??????????? | | #????????"""" """"" # #??????# #??????????? | | #???????? # ######## #??????????? | | #???????? # % %#??????????? | | ?????????##############+########## % #??????????? | | ??????????????# ## %############ | | ??????????????# ## %%% % | | ??????????????# "" """ ##+##+############ | | ??????????????# "" "" # [#??????? | | ??????????????# """ """" # #??????? | | ??????????????# """"""" # #??????? | | ??????????????# #] #??????? | | ??????????????#############################??????? | | ?????????????????????????????????????????????????? | | ?????????????????????????????????????????????????? | | ????????????????????###########??????????????????? | | ????????????????????# [ ####???????????????? | +----------------------------------------------------+ Best States ------------- Heat Dissipation 118 Coolant Potential 65 Energy Generation 45 Energy Capacity 1650 Matter Stores 300 Matter Capacity 300 Sight Range 16 Robot Scan Range 20 Terrain Scan Density 10 Jamming Range 12 Cloak Strength 9 Additional Mass Support 30 Base Temperature (-) 200 Armor Coverage 1500 Resistance: KI 20 Resistance: TH 75 Resistance: EM 75 Core Shielding 30 Propulsion Shielding 90 Projectile Deflection 15 Melee Speed Boost 50 Phase Shifting 25 Evasion (%) 79 Targeting Accuracy 20 Launcher Accuracy 60 Target Analysis 10 Core Analysis 15 Recoil Reduction 3 Particle Charging 50 Offensive Hacking 12 Authchip Count 4 Trap Extractor Capacity 8 Item Schematics ----------------- Exp. Sensor Array | -9/Materials | Scanalyzed Imp. Propulsion Shielding | -9/Materials | Scanalyzed Mak. Leg | -6/Factory | Extrapolated Mak. Coolant Network | -6/Factory | Extrapolated Deep Structural Scanner | -6/Factory | Extrapolated 0b10 Decoder Chip [Skirmisher] | -6/Factory | Extrapolated Mak. Propulsion Shielding | -6/Factory | Extrapolated Barrage Gun | -6/Factory | Extrapolated Mak. Thermal Plating | -6/Factory | Extrapolated Mak. Power Source | -6/Factory | Extrapolated Mak. Light Armor Plating | -6/Factory | Extrapolated Impulse Thruster | -6/Factory | Downloaded Beamcaster | -6/Factory | Extrapolated Mak. Medium Armor Plating | -6/Waste | Extrapolated Mak. Heavy Armor Plating | -6/Waste | Extrapolated Mak. Ablative Armor | -6/Factory | Extrapolated Mak. System Shield | -6/Factory | Extrapolated Mak. Terrain Scanner | -6/Factory | Extrapolated 0b10 Decoder Chip [Generic] | -6/Factory | Extrapolated 0b10 Decoder Chip [Scout] | -6/Factory | Extrapolated Ovr. Coil Gun | -6/Factory | Scanalyzed Mak. Flight Unit | -6/Factory | Extrapolated Imp. System Restoration Module | -6/Factory | Scanalyzed Cld. VTOL Module | -6/Factory | Scanalyzed Tactical Coordination Suite | -6/Factory | Extrapolated Mak. Hover Unit | -6/Factory | Extrapolated Mak. ECM Suite | -6/Factory | Extrapolated Mak. Power Shielding | -6/Factory | Extrapolated Mak. System Restoration Module | -6/Factory | Extrapolated Spk. Treads | -6/Extension | Extrapolated Spk. Medium Treads | -6/Extension | Extrapolated Spk. Heavy Treads | -6/Extension | Extrapolated Mak. Core Shielding | -6/Extension | Extrapolated Mak. Kinetic Plating | -6/Extension | Extrapolated Mak. Hacking Suite | -6/Extension | Extrapolated Mak. Laser | -6/Extension | Extrapolated Hvy. Beamcaster | -6/Extension | Extrapolated Mak. Sensor Array | -6/Extension | Extrapolated Mak. Hammer | -6/Extension | Extrapolated Mak. Targeting Computer | -6/Hub_04(d) | Extrapolated Energy Deflector | -5/Factory | Extrapolated Machine Rigger | -5/Factory | Extrapolated Battle Cannon | -5/Factory | Extrapolated Multitool | -5/Factory | Extrapolated Mapping Drone Bay | -5/Factory | Extrapolated Q-thruster | -5/Factory | Scanalyzed Exp. EM Shield | -5/Factory | Scanalyzed Adv. KE Penetrator | -5/Factory | Scanalyzed Exp. Heat Sink | -5/Factory | Scanalyzed CPS Tube | -5/Factory | Scanalyzed Hyp. Gauss Cannon | -5/Factory | Scanalyzed Electron Diverter | -3/Quarantine | Archive Imp. Matter Neutralizer | -3/Quarantine | Archive Exp. Shield Generator | -3/Quarantine | Archive Hvy. Antimatter Reactor | -3/Quarantine | Archive Cld. Antigrav System | -3/Protoforge | Archive Lgt. Neutrino Core | -3/Protoforge | Archive Imp. Thermal Defense Suite | -3/Protoforge | Archive Adv. Energy Well | -2/Testing | Archive Exp. Core Analyzer | -2/Testing | Archive Cld. Impulse Thruster | -2/Testing | Archive Robot Schematics ------------------ M-13 Machinist | -9/Materials | Hacked E-15 Imp | -5/Factory | Hacked Fabricated ------------ Cld. VTOL Module | x1 | -6/Factory | Authchip Cld. VTOL Module | x1 | -6/Factory | Authchip Impulse Thruster | x2 | -5/Factory | Authchip M-13 Machinist | x1 | -5/Factory | Authchip Impulse Thruster | x2 | -5/Factory Deep Structural Scanner | x1 | -5/Factory Exp. Sensor Array | x1 | -5/Factory | Authchip Cld. VTOL Module | x1 | -4/Factory | Authchip Deep Structural Scanner | x1 | -4/Armory Ovr. Coil Gun | x1 | -4/Armory | Authchip Repaired ---------- Ovr. Coil Gun | 66% | -6/Factory | Broken Gravmag Array | 64% | -6/Extension Studied --------- Arm. Wheel | -9/Materials | Hacked Hvy. Assault Rifle | -9/Materials | Hacked Rocket Launcher | -9/Materials | Hacked Gravmag Array | -6/Factory | Hacked Lgt. Fission Core | -6/Factory | Hacked Impulse Thruster | -5/Factory | Hacked Hyp. Gauss Cannon | -5/Factory | Hacked Impulse Thruster Array | -4/Factory | Hacked Mic. Fission Core | -3/Research | Hacked Antigrav Array | -2/Testing | Hacked Mic. Antimatter Reactor | -2/Testing | Hacked Alien Tech Used ----------------- Integrated Mediator Core Regenerator Sigix Broadsword Dimensional Node Initializer Transdimensional Reconstructor Subatomic Replicator Achievements -------------- None Challenges ------------ None Game ------ Seed RefinerySystemBattery Manual? 0 Play Time 07:36:02 Cumulative 1106.5 hours Start 2026.09.17 @ 14:26:06 End 2026.09.17 @ 23:05:01 Sessions 1 Manual Loads 0 Difficulty Rogue Special Mode None Game No. 305 Rogue 305 Adventurer 0 Explorer 0 Win Type - Total 50 Types 15/11/12/2/2/0/4/1/1/2 Lore% 97 Gallery% 92 Achievement% 88 Wizard Run 0 Options --------- Layout 1 ASCII 0 Keyboard 0 Movement Mouse Keybinds 0 Fullscreen 2 Font 32/SmallcapsGlow Map View 50x35 Zoom Use 0% Tactical HUD 1 Map Filters NONE Filters LOW_CONTRAST(47,30,31) Steam 1 RUN: e61dc032-3476-4090-94a9-cdbafc3a5ea8